{"text_format":"1","workbook":"xlsx","n_sheets":9,"sheets":["全体版","東北","関東","北陸","中部","近畿","中国","四国","九州・沖縄"],"not_rendered":{"charts":0,"images":0,"macros":1,"external_links":0,"defined_names":27,"comments":0,"pivot_tables":0},"unopened":[],"bounds":{"document_bytes":16777216,"sheet_cells":100000,"rows_first":2000,"rows_last":500,"rows_between":2000,"halvings":0,"cell_chars":16384,"cell_head_chars":4096},"cells_cut":0,"cells_raw":0,"read":"whole","date_system":"1900"}

{"sheet":"全体版","index":0,"n_rows":565,"n_cols":10,"rows_kept":565,"cut":false,"hidden":false,"merged":[[354,1,354,6],[372,1,372,6],[272,1,272,6],[396,5,411,5],[396,6,411,6],[301,1,301,6],[5,1,5,6],[89,1,89,6],[100,1,100,6],[118,1,118,6],[150,1,150,6],[14,1,14,6],[41,1,41,6],[64,1,64,6],[139,1,139,6],[1,1,1,6],[3,5,3,6],[2,5,2,6],[284,1,284,6],[516,1,516,6],[184,1,184,6],[222,1,222,6],[239,1,239,6],[249,1,249,6],[264,1,264,6],[197,1,197,6],[201,1,201,6],[378,1,378,6],[395,1,395,6],[396,3,411,3],[396,4,411,4],[204,1,204,6],[314,1,314,6],[335,1,335,6],[342,1,342,6],[60,1,60,6],[82,1,82,6],[179,1,179,6],[153,1,153,6],[168,1,168,6],[561,1,561,6],[450,1,450,6],[484,1,484,6],[490,1,490,6],[491,3,506,3],[491,4,506,4],[491,5,506,5],[491,6,506,6],[534,1,534,6],[412,1,412,6],[423,1,423,6],[435,1,435,6],[507,1,507,6],[538,1,538,6]]}
[null,null,null,null,null,null,null,null,null,{"$f":"SUBTOTAL(103,C6:C565)","v":517}]
[null,"令和６年能登半島地震で被災された方の申込みを受け付けている\n公営住宅等の問合せ先一覧"]
[null,null,null,null,null,"※令和７年５月３０日時点"]
[null,null,null,null,null,"※確認中のため空欄の箇所あり"]
[null,"都道府県","事業主体","担当部署","ホームページＵＲＬ","電話番号","オンライン受付","ホームページＵＲＬ","オンライン受付"]
["東北","青森県"]
["東北","青森県","青森県","県土整備部建築住宅課",null,"017-734-9692"]
["東北","青森県","青森市","都市整備部住宅政策課","ホームページはこちら","017-734-5572"]
["東北","青森県","弘前市","建設部建築住宅課",null,"0172-35-1321"]
["東北","青森県","むつ市","住宅政策課",null,"0175-22-1111(内線2763)"]
["東北","青森県","平川市","平川市健康福祉部福祉課",null,"0172-44-1111"]
["東北","青森県","板柳町","地域整備課",null,"0172-73-2111"]
["東北","青森県","野辺地町","建設水道課",null,"0175-64-2111"]
["東北","青森県","風間浦村","産業建設課",null,"0175-35-2111"]
["東北","岩手県"]
["東北","岩手県","岩手県","県土整備部建築住宅課",{"$f":"HYPERLINK($H16,\"ホームページはこちら\")","v":"ホームページはこちら"},"019-629-5931",null,"https://www.pref.iwate.jp/kurashikankyou/kenchiku/kenei/1071291.html"]
["東北","岩手県","盛岡市","建設部建築住宅課",{"$f":"HYPERLINK($H17,\"ホームページはこちら\")","v":"ホームページはこちら"},"019-626-7533",null,"https://www.city.morioka.iwate.jp/kurashi/sumai/shieijutaku/1046882.html"]
["東北","岩手県","宮古市","都市整備部建築住宅課",null,"0193-68-9107"]
["東北","岩手県","大船渡市","都市整備部住宅管理課",{"$f":"HYPERLINK($H19,\"ホームページはこちら\")","v":"ホームページはこちら"},"0192-27-3111（代表）",null,"https://www.city.ofunato.iwate.jp/soshiki/bousai/31347.html"]
["東北","岩手県","花巻市","建設部建築住宅課",{"$f":"HYPERLINK($H20,\"ホームページはこちら\")","v":"ホームページはこちら"},"0198-41-3566",null,"https://www.city.hanamaki.iwate.jp/kurashi/anshin_anzen/bousai_saigai/1020624/index.html"]
["東北","岩手県","北上市","北上市都市整備部都市計画課",null,"0197-72-8278"]
["東北","岩手県","久慈市","建設部建設企画課",null,"0194-52-2111"]
["東北","岩手県","遠野市","環境整備部建設課",{"$f":"HYPERLINK($H23,\"ホームページはこちら\")","v":"ホームページはこちら"},"0198-62-2111",null,"https://www.city.tono.iwate.jp/index.cfm/50,75381,331,html"]
["東北","岩手県","一関市","建設部都市整備課",{"$f":"HYPERLINK($H24,\"ホームページはこちら\")","v":"ホームページはこちら"},"0191-21-8541",null,"https://www.city.ichinoseki.iwate.jp/index.cfm/8,163908,138,html"]
["東北","岩手県","陸前高田市","建設部建設課",{"$f":"HYPERLINK($H25,\"ホームページはこちら\")","v":"ホームページはこちら"},"0192-54-2111",null,"https://www.city.rikuzentakata.iwate.jp/bosai_anzen/notohanto_jishin/7605.html"]
["東北","岩手県","釜石市","建設部都市計画課",{"$f":"HYPERLINK($H26,\"ホームページはこちら\")","v":"ホームページはこちら"},"0193-22-2111（内線437）",null,"https://www.city.kamaishi.iwate.jp/docs/2024010900059/"]
["東北","岩手県","二戸市","二戸市建設整備部　都市計画課",null,"0195-23-0183"]
["東北","岩手県","八幡平市","建設課",null,"0195-74-2111"]
["東北","岩手県","雫石町","地域整備課",null,"019-692-6406"]
["東北","岩手県","葛巻町","建設水道課",null,"0195-65-8988"]
["東北","岩手県","岩手町","建設課都市住宅係",null,"0195-62-2111"]
["東北","岩手県","紫波町","建設部　都市計画課",null,"019-672-2111"]
[null,"岩手県","矢巾町","道路住宅課　住宅政策係",null,"019-611-2631"]
[null,"岩手県","金ケ崎町","金ケ崎町都市建設課",null,"0197-42-2111"]
["東北","岩手県","平泉町","建設水道課",null,"0191-46-5569"]
["東北","岩手県","住田町","建設課",null,"0192-46-2115"]
["東北","岩手県","大槌町","地域整備課",{"$f":"HYPERLINK($H37,\"ホームページはこちら\")","v":"ホームページはこちら"},"0193-42-8722",null,"https://www.town.otsuchi.iwate.jp/gyosei/docs/448294.html"]
["東北","岩手県","山田町","都市計画課建築住宅係",{"$f":"HYPERLINK($H38,\"ホームページはこちら\")","v":"ホームページはこちら"},"0193-82-3111（内線252）",null,"https://www.town.yamada.iwate.jp/docs/6819.html"]
["東北","岩手県","岩泉町","地域整備課住宅対策室",{"$f":"HYPERLINK($H39,\"ホームページはこちら\")","v":"ホームページはこちら"},"0194-22-2111",null,"https://www.town.iwaizumi.lg.jp/docs/2024011900010/"]
["東北","岩手県","洋野町","町民生活課",null,"0194-65-5914"]
["東北","岩手県","一戸町","建設部地域整備課",null,"0195-33-2111"]
["東北","宮城県"]
["東北","宮城県","宮城県","土木部住宅課",{"$f":"HYPERLINK($H43,\"ホームページはこちら\")","v":"ホームページはこちら"},"022-211-3252",null,"https://www.pref.miyagi.jp/soshiki/juutaku/notohanntouzishinn.html"]
["東北","宮城県","仙台市","市営住宅管理課",{"$f":"HYPERLINK($H44,\"ホームページはこちら\")","v":"ホームページはこちら"},"022-214-8331",null,"https://www.city.sendai.jp/siei-kikaku/notohanntoujisin.html"]
["東北","宮城県","石巻市","建設部住宅課",{"$f":"HYPERLINK($H45,\"ホームページはこちら\")","v":"ホームページはこちら"},"0225-95-1111",null,"https://www.city.ishinomaki.lg.jp/cont/10503600/001/099/20240110190758.html"]
["東北","宮城県","塩竈市","産業建設部まちづくり・建築課",null,"022-364-2510"]
["東北","宮城県","白石市","建設部建設課",{"$f":"HYPERLINK($H47,\"ホームページはこちら\")","v":"ホームページはこちら"},"0224-22-1326",null,"http://www.city.shiroishi.miyagi.jp/soshiki/23/"]
["東北","宮城県","多賀城市","都市産業部都市計画課",null,"022-368-4242"]
["東北","宮城県","登米市","建設部住宅都市整備課",null,"0220-34-2316"]
["東北","宮城県","栗原市","建設部建築住宅課",{"$f":"HYPERLINK($H50,\"ホームページはこちら\")","v":"ホームページはこちら"},"0228-22-1153"]
["東北","宮城県","大崎市","建築住宅課",{"$f":"HYPERLINK($H51,\"ホームページはこちら\")","v":"ホームページはこちら"},"0229-23-2108"]
["東北","宮城県","蔵王町","建設課",null,"0224-33-2214"]
["東北","宮城県","丸森町","建設課建築住宅班",{"$f":"HYPERLINK($H53,\"ホームページはこちら\")","v":"ホームページはこちら"},"0224-72-3032"]
["東北","宮城県","山元町","建設課",{"$f":"HYPERLINK($H54,\"ホームページはこちら\")","v":"ホームページはこちら"},"0223-29-8005"]
["東北","宮城県","七ヶ浜町","建設課管理係",null,"022-357-7441"]
["東北","宮城県","大和町","大和町役場都市建設課",null,"022-345-7502",null,"https://www.town.marumori.miyagi.jp/news/detail.php?news=425"]
["東北","宮城県","色麻町","色麻町建設水道課",null,"0229-65-2224",null,"https://www.town.yamamoto.miyagi.jp/soshiki/15/23318.html"]
["東北","宮城県","加美町","町民課",null,"0229-63-3112"]
["東北","宮城県","女川町","町民生活課　住宅係",null,"0225-54-3131"]
["東北","宮城県","南三陸町","建設課",null,"0226-46-1377"]
["東北","秋田県"]
["東北","秋田県","秋田県","建築住宅課",null,"018-860-2563"]
["東北","秋田県","能代市","都市整備部　都市整備課",null,"0185-89-2194"]
["東北","秋田県","八峰町","八峰町建設課",null,"0185-76-4610"]
["東北","山形県"]
["東北","山形県","山形県","村山総合支庁建設部建築課\n置賜総合支庁建設部建築課\n庄内総合支庁建設部建築課",{"$f":"HYPERLINK($H66,\"ホームページはこちら\")","v":"ホームページはこちら"},"村山管内:023-621‐8271\n置賜管内:0238‐35‐9054\n庄内管内:0235‐66‐5639"]
["東北","山形県","山形市","まちづくり政策部 管理住宅課　",null,"023-641-1212"]
["東北","山形県","米沢市","建設部建築住宅課",{"$f":"HYPERLINK($H68,\"ホームページはこちら\")","v":"ホームページはこちら"},"0238-22-51111"]
["東北","山形県","鶴岡市","建設部 建築課 住宅支援係",null,"0235-35-1428"]
["東北","山形県","酒田市","酒田市建設部建築課公営住宅係",null,"0234-26-5747"]
["東北","山形県","新庄市","都市整備課建築住宅室",null,"0233-29-5821"]
["東北","山形県","寒河江市","建設管理課",{"$f":"HYPERLINK($H72,\"ホームページはこちら\")","v":"ホームページはこちら"},"0237-85-1627",null,"https://www.pref.yamagata.jp/180025/20240112notohantou.html"]
["東北","山形県","村山市","建設課管理係",null,"0237-55-2111(内線231)"]
["東北","山形県","天童市","建設部都市計画課",null,"023-654-1111",null,"https://www.city.yonezawa.yamagata.jp/soshiki/6/1026/2/3/7554.html"]
["東北","山形県","尾花沢市","建設課",null,"0237-22-1114"]
["東北","山形県","山辺町","建設課管理用地係",null,"023-667-1113"]
["東北","山形県","中山町","建設課　建設整備グループ",null,"023-662-2116",null,"https://www.city.sagae.yamagata.jp/kurashi/sumai/jyutaku/notohantoshieijuutak.html"]
["東北","山形県","西川町","建設水道課",null,"0237-74-4120"]
["東北","山形県","朝日町","建設水道課",{"$f":"HYPERLINK($H79,\"ホームページはこちら\")","v":"ホームページはこちら"},"0237-67-2115"]
["東北","山形県","大江町","大江町建設水道課",null,"0237-62-2116"]
["東北","山形県","白鷹町","建設課",null,"0238-85-6140"]
["東北","山形県","三川町","建設環境課",null,"0235-35-7035"]
["東北","福島県",null,null,null,null,null,"https://www.town.asahi.yamagata.jp/portal/soshikinogoannai/kensetsusuidoka/seibigakari/3/tyoueizyuutaku/9367.html"]
["東北","福島県","福島市","福島市都市政策部住宅政策課市営住宅係",null,"024-525-3757"]
["東北","福島県","郡山市","郡山市営住宅管理センター\n（建設構想部住宅政策課）",null,"024-924-7100"]
["東北","福島県","南相馬市","建築住宅課","ホームページはこちら","0244-24-5253"]
["東北","福島県","矢吹町","都市整備課",null,"0248-42-2116"]
["東北","福島県","広野町","総務課",null,"0240-27-2111"]
["東北","福島県","飯舘村","建設課建設管理係",null,"0244-42-1624"]
["関東","茨城県"]
["関東","茨城県","茨城県","土木部都市局住宅課",{"$f":"HYPERLINK($H91,\"ホームページはこちら\")","v":"ホームページはこちら"},"029-301-4750",null,"https://www.pref.ibaraki.jp/doboku/jutaku/kanri/01class/class14/04kenei/notohantoujishin_hisaisya.html"]
["関東","茨城県","水戸市","都市計画部住宅政策課",{"$f":"HYPERLINK($H92,\"ホームページはこちら\")","v":"ホームページはこちら"},"029-232-9200",null,"https://www.city.mito.lg.jp/page/65853.html"]
["関東","茨城県","日立市","保健福祉部　市営住宅課",null,"0294-22-3111（内線303）"]
["関東","茨城県","土浦市","建設部住宅営繕課",{"$f":"HYPERLINK($H94,\"ホームページはこちら\")","v":"ホームページはこちら"},"029-826-1111",null,"https://www.city.tsuchiura.lg.jp/page/page019575.html"]
["関東","茨城県","古河市","都市建設部営繕住宅課",null,"0280-76-1511"]
["関東","茨城県","下妻市","建設部建設課",null,"0296-45-8127"]
["関東","茨城県","笠間市","都市建設部都市計画課管理G",null,"笠間市都市計画課\n0296-77-1101(内線575)\n市営住宅受付窓口 0296-72-6115"]
["関東","茨城県","ひたちなか市","建設部住宅課",null,"029-273-0111 内6212"]
[null,"茨城県","鹿嶋市","都市整備部　都市計画課",null,"0299-82-2911"]
["関東","茨城県","境町","企画部財務課管財室",null,"0280-81-1318"]
["関東","栃木県"]
["関東","栃木県","栃木県","県土整備部住宅課",{"$f":"HYPERLINK($H102,\"ホームページはこちら\")","v":"ホームページはこちら"},"028-623-2486",null,"https://www.pref.tochigi.lg.jp/h11/town/jyuutaku/kouei/r06notohantoujisin-keneijyutaku.html"]
["関東","栃木県","宇都宮市","都市整備部住宅政策課","ホームページはこちら","028-632-2555",null,"https://www.city.utsunomiya.tochigi.jp/kurashi/machi/jutaku/index.html"]
["関東","栃木県","足利市","都市建設部建築・住宅政策課","ホームページはこちら","0284-20-2198",null,"https://www.city.ashikaga.tochigi.jp/living/000019/000130/000577/p005594.html"]
["関東","栃木県","栃木市","都市建設部　建築住宅課","ホームページはこちら","0282-21-2451",null,"https://www.city.tochigi.lg.jp/site/fornoto/67579.html"]
["関東","栃木県","佐野市","都市建設部建築住宅課住宅政策係","ホームページはこちら","0283-20-3103",null,"https://www.city.sano.lg.jp/soshikiichiran/sougou/toshibrandsuishin/gyomuannai/koho/noto/23172.html"]
["関東","栃木県","鹿沼市","都市建設部建築課住宅係","ホームページはこちら","0289-63-2217",null,"https://www.city.kanuma.tochigi.jp/0130/info-0000009354-1.html"]
["関東","栃木県","日光市","建設部建築住宅課市営住宅係","ホームページはこちら","0288-21-5164",null,"https://www.city.nikko.lg.jp/kurashi_tetsuzuki/sumai/3/7884.html"]
["関東","栃木県","小山市","建築課住宅管理係","ホームページはこちら","0285-22-9212",null,"https://www.city.oyama.tochigi.jp/kurashi/bosai-bohan/bosai/r06notohantoujisin-jyutaku.html"]
["関東","栃木県","大田原市","建設部建築住宅課","ホームページはこちら","0287-23-8724",null,"https://www.city.ohtawara.tochigi.jp/docs/2024011900010/"]
["関東","栃木県","那須塩原市","建設部都市計画課","ホームページはこちら","0287-62-7162",null,"https://www.city.nasushiobara.tochigi.jp/soshikikarasagasu/toshikeikakuka/sumai_kurashi/3/19017.html"]
["関東","栃木県","さくら市","建設部建設課",null,"028-681-1119"]
["関東","栃木県","上三川町","建築課住宅係",null,"0285-56-9145"]
["関東","栃木県","茂木町","保健福祉課",null,"0285-63-5631"]
[null,"栃木県","野木町","都市整備課施設保全係",null,"0280ｰ57ｰ4155"]
["関東","栃木県","塩谷町","建設水道課",null,"0287-45-1114"]
["関東","栃木県","高根沢町","都市整備課",null,"028-675-8107"]
["関東","栃木県","那珂川町","建設課",null,"0287-92-1118"]
["関東","群馬県"]
["関東","群馬県","群馬県","県土整備部住宅政策課",{"$f":"HYPERLINK($H120,\"ホームページはこちら\")","v":"ホームページはこちら"},"027-226-3718",{"$f":"HYPERLINK($I120,\"○\")","v":"○"},"https://www.pref.gunma.jp/page/623655.html","https://www.pref.gunma.jp/page/623655.html"]
["関東","群馬県","高崎市","群馬県住宅供給公社高崎支所","ホームページはこちら","027-321-1267",null,"https://www.city.takasaki.gunma.jp/page/35768.html"]
["関東","群馬県","桐生市","都市整備部建築住宅課","ホームページはこちら","0277-48-9029",null,"https://www.city.kiryu.lg.jp/kurashi/jutaku/1018099/1018100/1001138.html"]
["関東","群馬県","伊勢崎市","建設部住宅課住宅管理係","ホームページはこちら","0270-27-2764",null,"https://www.city.isesaki.lg.jp/soshiki/kensetu/jyutaku/jyuutakukanri/19763.html"]
["関東","群馬県","太田市","都市政策部　建築住宅課","ホームページはこちら","0276-47-1898",null,"https://www.city.ota.gunma.jp/page/1031213.html"]
["関東","群馬県","館林市","建築課住宅施設係","ホームページはこちら","0276-47-5156",null,"https://www.city.tatebayashi.gunma.jp/s069/kurashi/080/080/20240116091627.html"]
["関東","群馬県","渋川市","建設交通部建築住宅課",null,"0279-22-2072"]
["関東","群馬県","藤岡市","都市建設部建築課住宅係",null,"0274-40-2326(直通)"]
["関東","群馬県","安中市","まちづくり部建築住宅課住宅政策係",null,"027-382-1111",null,"https://www.city.tomioka.lg.jp/www/contents/1705040534300/index.html"]
["関東","群馬県","みどり市","都市建設部建築住宅課",null,"0277-76-2189"]
["関東","群馬県","中之条町","建設課　都市計画・住宅係",null,"0279-75-8828"]
["関東","群馬県","長野原町","建設課",null,"0279-82-3010"]
["関東","群馬県","嬬恋村","建設課",null,"0279-96-1973"]
["関東","群馬県","高山村","建設課",null,"0279-26-7950"]
["関東","群馬県","みなかみ町","群馬県住宅供給公社みなかみ支所",null,"0278-25-8423"]
["関東","群馬県","板倉町","都市建設課　計画管理係",null,"0276-82-6151"]
["関東","群馬県","明和町","都市建設課",null,"0276-84-3111(内線134)"]
["関東","群馬県","千代田町","建設下水道課",null,"0276-86-7004"]
["関東","群馬県","大泉町","都市建設部　都市整備課",{"$f":"HYPERLINK($H138,\"ホームページはこちら\")","v":"ホームページはこちら"},"0276-63-3111(内線243)"]
["関東","群馬県","邑楽町","建設環境課　住宅政策係",null,"0276-47-5031",null,"https://www.town.oizumi.gunma.jp/s022/kurashi/010/010/100/20240115113728.html"]
["関東","千葉県"]
["関東","千葉県","千葉市","千葉市住宅供給公社",{"$f":"HYPERLINK($H141,\"ホームページはこちら\")","v":"ホームページはこちら"},"043-301-6271",null,"https://www.city.chiba.jp/toshi/kenchiku/jutakuseibi/2024notohantouzisinshien.html"]
["関東","千葉県","銚子市","都市整備課　　都市整備室",{"$f":"HYPERLINK($H142,\"ホームページはこちら\")","v":"ホームページはこちら"},"0479-24-8899",null,"https://www.city.choshi.chiba.jp/business/page1401_00011.html"]
["関東","千葉県","野田市","営繕課 市営住宅係",{"$f":"HYPERLINK($H143,\"ホームページはこちら\")","v":"ホームページはこちら"},"04-7123-1194",null,"https://www.city.noda.chiba.jp/kurashi/seikatsu/kurashi/1035708/1040303.html"]
["関東","千葉県","茂原市","都市建設部　建築課","ホームページはこちら","0475-20-1588",null,"https://www.city.mobara.chiba.jp/0000008174.html"]
["関東","千葉県","佐倉市","都市部 住宅課","ホームページはこちら","043-484-6168",null,"https://www.city.sakura.lg.jp/soshiki/jutakuka/index.html"]
["関東","千葉県","八千代市","健康福祉課",null,"047-421-6731"]
[null,"千葉県","我孫子市","建築住宅課",{"$f":"HYPERLINK($H147,\"ホームページはこちら\")","v":"ホームページはこちら"},"04-7185-1672",null,"https://www.city.abiko.chiba.jp/kurashi/sumai/shiei_kouei/noto_jyuutakushien.html"]
["関東","千葉県","鎌ケ谷市","建築住宅課","ホームページはこちら","047-445-1472",null,"https://www.city.kamagaya.chiba.jp/kurashi-tetsuzuki/sumai/juutaku/r6notojyuutaku.html"]
["関東","千葉県","袖ケ浦市","都市建設部都市整備課","ホームページはこちら","0438-62-3645",null,"https://www.city.sodegaura.lg.jp/site/tokusetusite/shiei-juutaku.html"]
["関東","千葉県","いすみ市","都市整備課",null,"0470-62-1204"]
["関東","東京都"]
["関東","東京都","新宿区","都市計画部住宅課",{"$f":"HYPERLINK($H152,\"ホームページはこちら\")","v":"ホームページはこちら"},"03-5273-3787",null,"https://www.city.shinjuku.lg.jp/seikatsu/jutaku01_000001_00040.html"]
["関東","東京都","品川区","都市環境部木密整備推進課","ホームページはこちら","03-5742-6779",null,"https://www.city.bunkyo.lg.jp/kusejoho/torikumi/notojutaku.html"]
["関東","山梨県"]
["関東","山梨県","山梨県","住宅対策室",{"$f":"HYPERLINK($H155,\"ホームページはこちら\")","v":"ホームページはこちら"},"055-223-1732",null,"https://www.pref.yamanashi.jp/ju-taisaku/notojishin2024.html"]
["関東","山梨県","富士吉田市","都市基盤部建築住宅課",{"$f":"HYPERLINK($H156,\"ホームページはこちら\")","v":"ホームページはこちら"},"0555-22-1111",null,"https://www.city.fujiyoshida.yamanashi.jp/info/4973"]
["関東","山梨県","山梨市","建設課　市営住宅担当",null,"0553-22-1111"]
["関東","山梨県","大月市","産業建設部建設課",null,"0554-20-1852"]
["関東","山梨県","韮崎市","営繕住宅課　住宅管理担当",null,"0551-22-1111(257)"]
["関東","山梨県","北杜市","建設部住宅課",{"$f":"HYPERLINK($H160,\"ホームページはこちら\")","v":"ホームページはこちら"},"0551-42-1362",null,"https://www.city.hokuto.yamanashi.jp/docs/26493.html"]
["関東","山梨県","甲斐市","建設課",null,"055-278-1668"]
["関東","山梨県","笛吹市","建設部　建設総務課　総務住宅担当",null,"055-261-3332"]
["関東","山梨県","甲州市","建設課　住宅担当",null,"0553-32-5071"]
["関東","山梨県","身延町","建設課　建築住宅担当",null,"0556-42-4808"]
["関東","山梨県","富士川町","都市整備課　住宅担当",null,"0556-22-7214"]
["関東","山梨県","西桂町","建設産業課",null,"0555-25-2121"]
["関東","山梨県","忍野村","建設課・教育委員会",null,"0555-84-7793(建)  0555-84-2042(教)"]
["関東","山梨県","小菅村","源流振興課",null,"0428-87-0111"]
["関東","長野県"]
["関東","長野県","長野県","建設部建築住宅課公営住宅室",null,"026-235-7337",null,"https://www.pref.nagano.lg.jp/jutaku/kurashi/sumai/kene/ichiziteikyo.html"]
["関東","長野県","岡谷市","建設水道部都市計画課",null,"0266-23-4811",null,"https://www.pref.nagano.lg.jp/jutaku/kurashi/sumai/kene/ichiziteikyo.html"]
["関東","長野県","茅野市","都市建設部都市計画課",null,"0266-72-2101",null,"https://www.pref.nagano.lg.jp/jutaku/kurashi/sumai/kene/ichiziteikyo.html"]
["関東","長野県","佐久市","建設部建築住宅住宅係",null,"0267-62-3430",null,"https://www.pref.nagano.lg.jp/jutaku/kurashi/sumai/kene/ichiziteikyo.html"]
["関東","長野県","東御市","都市部整備部建築課住宅係",null,"0268-64-5882",null,"https://www.pref.nagano.lg.jp/jutaku/kurashi/sumai/kene/ichiziteikyo.html"]
["関東","長野県","南相木村","振興課",null,"0267-78-2121",null,"https://www.pref.nagano.lg.jp/jutaku/kurashi/sumai/kene/ichiziteikyo.html"]
["関東","長野県","軽井沢町","住民課住民係",null,"0267-45-8540",null,"https://www.pref.nagano.lg.jp/jutaku/kurashi/sumai/kene/ichiziteikyo.html"]
["関東","長野県","飯島町","建設水道課調査計画係",null,"0265-86-3111",null,"https://www.pref.nagano.lg.jp/jutaku/kurashi/sumai/kene/ichiziteikyo.html"]
["関東","長野県","大桑村","住民課",null,"0264-55-3080",null,"https://www.pref.nagano.lg.jp/jutaku/kurashi/sumai/kene/ichiziteikyo.html"]
["関東","長野県","朝日村","建設環境課建設農地係",null,"0263-99-4103",null,"https://www.pref.nagano.lg.jp/jutaku/kurashi/sumai/kene/ichiziteikyo.html"]
["北陸","新潟県"]
["北陸","新潟県","新潟県","新潟県住宅供給公社",{"$f":"HYPERLINK($H181,\"ホームページはこちら\")","v":"ホームページはこちら"},"025-285-6111",null,"http://www.niigata-kousha.or.jp"]
["北陸","新潟県","新潟市","建築部住環境政策課","ホームページはこちら","025-226-2817",null,"https://www.city.niigata.lg.jp/kurashi/jyutaku/jukankyo/01sieijutaku/R6jishin_nyuukyo.html"]
["北陸","新潟県","柏崎市","都市整備部建築住宅課公営住宅係","ホームページはこちら","0257-21-2290",null,"https://www.city.nagaoka.niigata.jp/kurashi/life03/kouei/index.html"]
["北陸","新潟県","上越市","建築住宅課公営住宅係",{"$f":"HYPERLINK($H184,\"ホームページはこちら\")","v":"ホームページはこちら"},"025-526-5111",null,"https://www.city.sanjo.niigata.jp/kenko_fukushi/koeijutaku/index.html"]
["北陸","富山県",null,null,null,null,null,"https://www.city.kashiwazaki.lg.jp/kurashi_tetsuzuki/sumai_seikatsu/jutaku_tochi/2/39274.html"]
["北陸","富山県","富山県","土木部建築住宅課",{"$f":"HYPERLINK($H186,\"ホームページはこちら\")","v":"ホームページはこちら"},"076-444-3358",null,"https://www.city.shibata.lg.jp/"]
["北陸","富山県","富山市","建設部市営住宅課","ホームページはこちら","076-443-2097",null,"https://www.city.ojiya.niigata.jp/soshiki/bousai/notojishin-house.html"]
["北陸","富山県","高岡市","都市創造部建築政策課","ホームページはこちら","0766-20-1403"]
["北陸","富山県","魚津市","産業建設部都市計画課","ホームページはこちら","0765-23-1031",null,"https://www.city.tokamachi.lg.jp/soshiki/kensetsubu/toshikeikakuka/1/gyomu/9237.html"]
["北陸","富山県","滑川市","都市計画課",null,"076-475-1453",null,"https://www.city.murakami.lg.jp/soshiki/120/kouei-jutaku.html"]
["北陸","富山県","黒部市","黒部市都市創造部都市計画課","ホームページはこちら","0765-54-2647",null,"https://www.city.tsubame.niigata.jp/kurashi/kenchiku/3/index.html"]
["北陸","富山県","砺波市","建設水道部都市整備課","ホームページはこちら","0763-33-1447"]
["北陸","富山県","小矢部市","産業建設部都市建設課",null,"0766-67-1760",null,"https://www.city.joetsu.niigata.jp/site/r6-01-01-earthquake/shienlist.html"]
["北陸","富山県","南砺市","市民協働部南砺で暮らしません課","ホームページはこちら","0763-23-2037",null,"http://www.city.sado.niigata.jp"]
["北陸","富山県","上市町","建設課",null,"076-472-2477",null,"https://www.city.minamiuonuma.niigata.jp/docs/5877.html"]
["北陸","富山県","立山町","建設課建築住宅係",{"$f":"HYPERLINK($H196,\"ホームページはこちら\")","v":"ホームページはこちら"},"076-462-9976",null,"https://www.city.tainai.niigata.jp/kurashi/sekatsu/toshikekaku/jyutaku/jyutaku.html"]
["北陸","富山県","入善町","住まい・まちづくり課",{"$f":"HYPERLINK($H197,\"ホームページはこちら\")","v":"ホームページはこちら"},"0765-72-3841",null,"https://www.town.aga.niigata.jp"]
["北陸","石川県"]
["北陸","石川県","輪島市","建設部　まちづくり推進課",null,"0768-23-1156",null,"https://www.pref.toyama.jp/1507/kurashi/seikatsu/sumai/kj20240102-1.html"]
["北陸","石川県","珠洲市","環境建設課",null,"0768-82-7756",null,"https://www.city.toyama.lg.jp/bosai/bosai/1010665/1014492.html"]
["北陸","石川県","志賀町","まち整備課",null,"0767-32-9211"]
["北陸","福井県"]
["北陸","福井県","福井市","建設部 建築事務所 市営住宅課",{"$f":"HYPERLINK($H203,\"ホームページはこちら\")","v":"ホームページはこちら"},"0776-20-5570",null,"https://www.town.nyuzen.toyama.jp/gyosei/soshiki/sumai_machidukuri/2/4/5530.html"]
["北陸","福井県","永平寺町","永平寺町建設課",null,"0776-61-3948"]
["中部","岐阜県"]
["中部","岐阜県","岐阜県","都市建築部住宅課",{"$f":"HYPERLINK($H206,\"ホームページはこちら\")","v":"ホームページはこちら"},"058-272-8692",null,"https://www.pref.gifu.lg.jp/page/338867.html"]
["中部","岐阜県","岐阜市","まちづくり推進部住宅課","ホームページはこちら","058-265-3902",null,"https://www.city.gifu.lg.jp/kurashi/sumai/1002425/1024540.html"]
["中部","岐阜県","大垣市","都市計画部住宅課","ホームページはこちら","0584-47-8184",null,"https://www.city.ogaki.lg.jp/0000030790.html"]
["中部","岐阜県","高山市","総合政策部 地域政策課","ホームページはこちら","0577-35-3183",null,"https://www.city.takayama.lg.jp/shisei/1019087/index.html"]
["中部","岐阜県","多治見市","建設部　建築住宅課","ホームページはこちら","0572-22-1312",null,"https://www.city.tajimi.lg.jp/kurashi/jutaku/20240110.html"]
["中部","岐阜県","中津川市","リニア都市政策部都市住宅課","ホームページはこちら","0573-66-1111",null,"https://www.city.nakatsugawa.lg.jp/life/life/3/26091.html"]
["中部","岐阜県","美濃加茂市","都市政策部都市計画課",null,"0574-25-2111"]
["中部","岐阜県","土岐市","市民生活部生活環境課",{"$f":"HYPERLINK($H213,\"ホームページはこちら\")","v":"ホームページはこちら"},"0572-54-1111(内線167)",null,"https://www.city.toki.lg.jp/kurashi/sumai/1004714/1008308.html"]
["中部","岐阜県","各務原市","都市建設部　建築指導課　住宅係",null,"058-383-7218"]
["中部","岐阜県","山県市","山県市建設課",null,"0581-22-6832"]
["中部","岐阜県","瑞穂市","都市整備部　都市管理課",{"$f":"HYPERLINK($H216,\"ホームページはこちら\")","v":"ホームページはこちら"},"058-327-2102",null,"https://www.city.mizuho.lg.jp/13041.htm"]
["中部","岐阜県","海津市","建設水道部住宅都市計画課",null,"0584-53-3485"]
["中部","岐阜県","養老町","産業建設部　建設課　改良住宅対策室",{"$f":"HYPERLINK($H218,\"ホームページはこちら\")","v":"ホームページはこちら"},"0584-32-5079",null,"https://www.town.yoro.gifu.jp/docs/2024010900028/"]
["中部","岐阜県","垂井町","建設課",null,"0584-22-1151"]
["中部","岐阜県","揖斐川町","産業建設部建設課",{"$f":"HYPERLINK($H220,\"ホームページはこちら\")","v":"ホームページはこちら"},"0585-22-2111",null,"https://www.town.ibigawa.lg.jp/0000011764.html"]
["中部","岐阜県","大野町","産業建設部建設課",null,"0585-34-1111"]
["中部","岐阜県","八百津町","建設課　管理係",{"$f":"HYPERLINK($H222,\"ホームページはこちら\")","v":"ホームページはこちら"},"0574-43-2111",null,"https://www.town.yaotsu.lg.jp/7104.htm"]
["中部","静岡県"]
["中部","静岡県","静岡県","くらし･環境部建築住宅局公営住宅課",{"$f":"HYPERLINK($H224,\"ホームページはこちら\")","v":"ホームページはこちら"},"054-221-3085",null,"https://www.pref.shizuoka.jp/bosaikinkyu/saigai/1056492/r60101eq.html"]
["中部","静岡県","静岡市","都市局建築部住宅政策課",{"$f":"HYPERLINK($H225,\"ホームページはこちら\")","v":"ホームページはこちら"},"054-221-1132",null,"https://www.city.shizuoka.lg.jp/412_000114.html"]
["中部","静岡県","浜松市","都市整備部　住宅課",{"$f":"HYPERLINK($H226,\"ホームページはこちら\")","v":"ホームページはこちら"},"053-457-2455",null,"https://www.city.hamamatsu.shizuoka.jp/jutaku/noto.html"]
["中部","静岡県","沼津市","沼津市住宅営繕課",null,"055-934-4792"]
["中部","静岡県","三島市","住宅政策課三島住まい推進室","ホームページはこちら","055-983-2639",null,"https://www.city.mishima.shizuoka.jp/ipn056185.html"]
["中部","静岡県","富士宮市","都市整備部建築住宅課",null,"0544-22-1163"]
["中部","静岡県","島田市","都市基盤部　建築住宅課",null,"0547-36-7193"]
["中部","静岡県","富士市","都市整備部　住宅政策課",{"$f":"HYPERLINK($H231,\"ホームページはこちら\")","v":"ホームページはこちら"},"0545-55-2843",null,"https://www.city.fuji.shizuoka.jp/kurashi/c0304/rn2ola000002jrx5.html"]
["中部","静岡県","磐田市","建築住宅課",{"$f":"HYPERLINK($H232,\"ホームページはこちら\")","v":"ホームページはこちら"},"0538-37-4851",null,"https://www.city.iwata.shizuoka.jp/bousai_anzen/1013040/1013041.html"]
["中部","静岡県","焼津市","建築住宅課",null,"054-626-2163"]
["中部","静岡県","掛川市","都市建築課　建築営繕部",null,"0537-21-1152"]
["中部","静岡県","藤枝市","都市建設部建築住宅課",null,"054-643-3481"]
["中部","静岡県","袋井市","都市計画課",null,"0538-44-3123",null,"https://www.city.fukuroi.shizuoka.jp/juyo/12286.html"]
["中部","静岡県","下田市","建設課",null,"0558-22-2219"]
["中部","静岡県","裾野市","建設部都市計画課",{"$f":"HYPERLINK($H238,\"ホームページはこちら\")","v":"ホームページはこちら"},"055-995-1856",null,"https://www.city.susono.shizuoka.jp/kurashi/4/2/8655.html"]
["中部","静岡県","森町","定住推進課",{"$f":"HYPERLINK($H239,\"ホームページはこちら\")","v":"ホームページはこちら"},"0538-85-6321"]
["中部","愛知県"]
["中部","愛知県","一宮市","建築部住宅政策課",{"$f":"HYPERLINK($H241,\"ホームページはこちら\")","v":"ホームページはこちら"},"0586-85-7011",null,"https://www.city.ichinomiya.aichi.jp/kenchiku/juutakuseisaku/1044032/1000397/1059527.html"]
["中部","愛知県","半田市","建設部建築課住宅担当","ホームページはこちら","0569-84-0670",null,"https://www.city.handa.lg.jp/shisei/koho/1004056/1004057/1004058/1006289/1006300.html"]
["中部","愛知県","蒲郡市","建築住宅課","ホームページはこちら","0533-66-1132",null,"https://www.city.tsushima.lg.jp/kurashi/sumaikenchiku/sieikairyoujyutaku/160030a2024011108344.html"]
["中部","愛知県","小牧市","建設部建築課","ホームページはこちら","0568-76-1143",null,"https://www.city.kariya.lg.jp/kurashi/anshin/hisaichi/1003823.html"]
["中部","愛知県","稲沢市","まちづくり部建築課","ホームページはこちら","0587-32-1418",null,"https://www.city.nishio.aichi.jp/kurashi/sumai/1001390/1008087.html"]
["中部","愛知県","新城市","建設部 都市計画課",null,"0536-23-7640",null,"https://www.city.gamagori.lg.jp/site/kenchiku/siei-saigainyukyo.html"]
["中部","愛知県","大府市","都市整備部建設総務課",{"$f":"HYPERLINK($H247,\"ホームページはこちら\")","v":"ホームページはこちら"},"0562-85-3896",null,"https://www.city.komaki.aichi.jp/admin/soshiki/kensetsubu/kenchiku/5/2_1/43861.html"]
["中部","愛知県","知多市","都市整備部都市計画課","ホームページはこちら","0562-36-2669",null,"https://www.city.inazawa.aichi.jp/0000003470.html"]
["中部","愛知県","田原市","都市建設部建築課住宅管理係","ホームページはこちら","0531-23-3527"]
["中部","三重県"]
["中部","三重県","三重県","県土整備部住宅政策課公営住宅班",{"$f":"HYPERLINK($H251,\"ホームページはこちら\")","v":"ホームページはこちら"},"059-224-2703",null,"https://www.pref.mie.lg.jp/TOPICS/m0037300212.htm"]
["中部","三重県","津市","建設部市営住宅課","ホームページはこちら","059-229-3190",null,"https://www.info.city.tsu.mie.jp/www/contents/1704780828137/index.html"]
["中部","三重県","伊勢市","都市整備部住宅政策課","ホームページはこちら","0596-21-5596",null,"https://www.city.ise.mie.jp/bousai_kyukyu/saigai_shien/1016685/1016724.html"]
["中部","三重県","松阪市","松阪市役所建設部住宅課","ホームページはこちら","0598-53-4163",null,"https://www.city.matsusaka.mie.jp/soshiki/43/noto.html"]
["中部","三重県","桑名市","都市整備部都市管理課","ホームページはこちら","0594-24-1220",null,"https://www.city.kuwana.lg.jp/hisyokoho/anzen/notohantoujisin.html\n"]
["中部","三重県","鈴鹿市","都市整備部住宅政策課","ホームページはこちら","059-382-7616",null,"https://www.city.suzuka.lg.jp/kurashi/sumai/1002589/1011479.html     "]
["中部","三重県","名張市","都市整備部　営繕住宅室","ホームページはこちら","0595-63-7740",null,"https://www.city.nabari.lg.jp/s043/030/080/320/201502053582.html"]
["中部","三重県","亀山市","亀山市建設部建築住宅課住まい推進グループ","ホームページはこちら","0595-84-5038",null,"https://www.city.kameyama.mie.jp/docs/2015031800015/"]
["中部","三重県","鳥羽市","建設課管理係","ホームページはこちら","0599-25-1171",null,"https://www.city.toba.mie.jp/soshiki/kanri/gyomu/sumai/shiei_jutaku/7298.html"]
["中部","三重県","志摩市","建設部　都市計画課",null,"0599-44-0305"]
["中部","三重県","伊賀市","建設部住宅課",{"$f":"HYPERLINK($H261,\"ホームページはこちら\")","v":"ホームページはこちら"},"0595-22-9737",null,"https://www.city.iga.lg.jp/0000003000.html"]
["中部","三重県","玉城町","建設課",null,"0596-58-8205"]
["中部","三重県","大紀町","大紀町建設課",null,"0598-86-2247"]
["中部","三重県","紀北町","建設課",null,"0597-46-3120"]
["近畿","滋賀県"]
["近畿","滋賀県","滋賀県","住宅課公営住宅係",{"$f":"HYPERLINK($H266,\"ホームページはこちら\")","v":"ホームページはこちら"},"077-528-4234",null,"https://www.pref.shiga.lg.jp/ippan/kendoseibi/zyuutaku/335656.html"]
["近畿","滋賀県","大津市","住宅政策課","ホームページはこちら","077-528-2786",null,"https://www.city.otsu.lg.jp/soshiki/035/1810/g/shiei/59847.html "]
["近畿","滋賀県","長浜市","都市建設部住宅課",null,"0749-65-6533"]
["近畿","滋賀県","近江八幡市","都市整備部　市営住宅課",null,"0748-36-5511"]
["近畿","滋賀県","守山市","建設部　建築課",null,"077-582-1139"]
["近畿","滋賀県","栗東市","都市整備部住宅課",{"$f":"HYPERLINK($H271,\"ホームページはこちら\")","v":"ホームページはこちら"},"077-551-0347",null,"https://www.city.ritto.lg.jp/soshiki/kensetsu/jutaku/oshirase/14420.html"]
["近畿","滋賀県","湖南市","都市建設部住宅課",null,"０７４８—７１—２３４９"]
["近畿","京都府"]
["近畿","京都府","舞鶴市","住宅課",null,"0773-66-1050",null,"https://www.pref.kyoto.jp/jutaku/news/notohanntou.html"]
["近畿","京都府","綾部市","建設部建築課",{"$f":"HYPERLINK($H275,\"ホームページはこちら\")","v":"ホームページはこちら"},"0773-42-4284"]
["近畿","京都府","向日市","都市整備部公共建物整備課",null,"075-874-2869",null,"https://www.city.ayabe.lg.jp"]
["近畿","京都府","八幡市","八幡市役所建設産業部住宅管理課","ホームページはこちら","075-983-5767"]
["近畿","京都府","京田辺市","建設部　開発指導課","ホームページはこちら","０７７４－６４－１３４１",null,"https://www.city.miyazu.kyoto.jp/soshiki/12/20889.html"]
["近畿","京都府","京丹後市","建設部  都市計画・建築住宅課","ホームページはこちら","0772-69-0530",null,"https://www.city.kameoka.kyoto.jp/soshiki/36/"]
["近畿","京都府","南丹市","土木建築部　営繕課","ホームページはこちら","0771-68-0062"]
["近畿","京都府","木津川市","建設部　施設整備課","ホームページはこちら","0774-79-0553",null,"https://www.city.yawata.kyoto.jp/"]
["近畿","京都府","井手町","同和・人権政策課",null,"0774-82-3380",null,"https://www.city.kyotanabe.lg.jp/0000020202.html"]
["近畿","京都府","伊根町","地域整備課","ホームページはこちら","0772-32-1000",null,"https://www.city.nantan.kyoto.jp/www/life/113/003/index.html"]
["近畿","京都府","与謝野町","建設課","ホームページはこちら","0772-43-9014",null,"https://www.city.kizugawa.lg.jp/index.cfm/6,60817,24,123,html"]
["近畿","兵庫県"]
["近畿","兵庫県","兵庫県","公営住宅管理課",{"$f":"HYPERLINK($H286,\"ホームページはこちら\")","v":"ホームページはこちら"},"078-230-8459",null,"https://web.pref.hyogo.lg.jp/kk37/20240104jisin_jyutaku.html"]
["近畿","兵庫県","洲本市","都市整備部　都市計画課",null,"0799-22-3321"]
["近畿","兵庫県","相生市","建設農林部 都市整備課 都市政策係",null,"0791-23-7135"]
["近畿","兵庫県","加古川市","住宅政策課",null,"079-427-9254"]
["近畿","兵庫県","赤穂市","市民部市民課住宅係",{"$f":"HYPERLINK($H290,\"ホームページはこちら\")","v":"ホームページはこちら"},"0791-43-7066",null,"https://www.city.ako.lg.jp/shimin/juutaku/noto_earthquake.html"]
["近畿","兵庫県","三木市","都市整備部　建築住宅課",null,"0794-82-2000"]
["近畿","兵庫県","高砂市","都市創造部土木総務課",{"$f":"HYPERLINK($H292,\"ホームページはこちら\")","v":"ホームページはこちら"},"079-443-9040",null,"https://www.city.takasago.lg.jp/gyoseisite/100/9928.html"]
["近畿","兵庫県","丹波篠山市","まちづくり部地域計画課",{"$f":"HYPERLINK($H293,\"ホームページはこちら\")","v":"ホームページはこちら"},"079-552-1118",null,"https://www.city.tambasasayama.lg.jp/soshikikarasagasu/chiikikeikakuka/kurashi_tetsuzuki/1/25844.html"]
["近畿","兵庫県","南あわじ市","産業建設部　都市政策室","ホームページはこちら","0799-43-5227",null,"https://www.city.minamiawaji.hyogo.jp/site/shiei-keneijyutaku/teikyojyutaku.html"]
["近畿","兵庫県","朝来市","都市整備部都市政策課","ホームページはこちら","079-672-6127",null,"https://www.city.asago.hyogo.jp/reiki/reiki_honbun/r166RG00002091.html"]
["近畿","兵庫県","たつの市","都市政策部建築住宅課",null,"0791-64-3163"]
["近畿","兵庫県","多可町","定住推進課",null,"0795-32-4776"]
[null,"兵庫県","稲美町","土木課",{"$f":"HYPERLINK($H298,\"ホームページはこちら\")","v":"ホームページはこちら"},"079-492-9142",null,"https://www.town.hyogo-inami.lg.jp/0000006722.html"]
["近畿","兵庫県","上郡町","建設課",null,"0791-52-1117"]
["近畿","兵庫県","佐用町","商工観光課定住・空家対策室",null,"0790-82-0670"]
["近畿","兵庫県","香美町","建設課",{"$f":"HYPERLINK($H301,\"ホームページはこちら\")","v":"ホームページはこちら"},"0796-36-1961",null,"https://www.town.mikata-kami.lg.jp/www/contents/1705038001933/index.html"]
["近畿","奈良県"]
["近畿","奈良県","大和高田市","環境建設部　住宅課　住宅グループ（公営住宅担当）",null,"0745-22-1101（代表）"]
["近畿","奈良県","天理市","建築課",{"$f":"HYPERLINK($H304,\"ホームページはこちら\")","v":"ホームページはこちら"},"0743-63-1001"]
["近畿","奈良県","生駒市","建設部営繕課",{"$f":"HYPERLINK($H305,\"ホームページはこちら\")","v":"ホームページはこちら"},"0743-74-1111内線2610",null,"https://www.city.kashihara.nara.jp/soshiki/1009/gyomu/3/2/704.html"]
["近畿","奈良県","三郷町","住環境政策課",null,"0745-43-7342",null,"https://www.city.gojo.lg.jp/soshiki/kenchikujutaku/juutaku/14893.html"]
["近畿","奈良県","川西町","まちマネジメント課",null,"0745-44-2679"]
["近畿","奈良県","田原本町","産業建設部まちづくり建設課",null,"0744-32-2901",null,"https://www.city.ikoma.lg.jp/topics/topics_list.php"]
["近畿","奈良県","曽爾村","地域建設課",null,"０７４５－９４－２１０５"]
["近畿","奈良県","王寺町","建設課",{"$f":"HYPERLINK($H310,\"ホームページはこちら\")","v":"ホームページはこちら"},"0745-73-2001"]
["近畿","奈良県","吉野町","町民税務課",null,"0746-32-3081",null,"https://www.town.ikaruga.nara.jp/"]
["近畿","奈良県","大淀町","人権施策推進室",null,"0747-52-5542"]
["近畿","奈良県","下市町","建設課",null,"0747-52-0001"]
["近畿","奈良県","十津川村","施設課",{"$f":"HYPERLINK($H314,\"ホームページはこちら\")","v":"ホームページはこちら"},"0746-62-0905"]
["近畿","和歌山県"]
["近畿","和歌山県","和歌山県","建築住宅課",{"$f":"HYPERLINK($H316,\"ホームページはこちら\")","v":"ホームページはこちら"},"073-441-3212",null,"https://www.pref.wakayama.lg.jp/prefg/080800/d00215491.html"]
["近畿","和歌山県","和歌山市","都市建設局建築住宅部住宅第１課","ホームページはこちら","073-435-1098",null,"http://www.city.wakayama.wakayama.jp/kurashi/sumai_jyougesuidou/1055712.html"]
["近畿","和歌山県","海南市","管理課　住宅班","ホームページはこちら","073-483-8488",null,"https://www.city.kainan.lg.jp/kakubusho/machizukuribu/kanrika/oshirase/5517.html"]
["近畿","和歌山県","橋本市","建築住宅課","ホームページはこちら","0736-33-1115",null,"https://www.city.hashimoto.lg.jp/guide/kensetsubu/kentikujutaku/shieijuutaku/ichizinyukyo.html"]
["近畿","和歌山県","御坊市","産業建設部　住宅対策課",null,"0738-23-5521"]
["近畿","和歌山県","田辺市","建設部建築課市営住宅係",null,"0739-26-9936"]
["近畿","和歌山県","新宮市","建設農林部　管理課",null,"0735-23-3354"]
["近畿","和歌山県","紀の川市","建設部住宅政策課　",null,"0736-77-2511"]
["近畿","和歌山県","紀美野町","企画管財課",{"$f":"HYPERLINK($H324,\"ホームページはこちら\")","v":"ホームページはこちら"},"073-489-5913",null,"https://www.town.kimino.wakayama.jp/sagasu/kensetsuka/3664.html"]
["近畿","和歌山県","かつらぎ町","管財情報課",null,"0736-22-0300"]
["近畿","和歌山県","高野町","建設課",null,"0736-56-2934"]
["近畿","和歌山県","有田川町","建設課",null,"0737-22-3281"]
["近畿","和歌山県","みなべ町","建設課",null,"0739-33-9370"]
["近畿","和歌山県","日高川町","住民課",null,"0738-22-1701"]
["近畿","和歌山県","白浜町","建設課",null,"0739-43-6589"]
["近畿","和歌山県","上富田町","建設課",null,"0739-34-2374"]
["近畿","和歌山県","すさみ町","総務課",null,"0739-55-4802"]
["近畿","和歌山県","那智勝浦町","建設課",null,"0735-52-0560"]
["近畿","和歌山県","古座川町","総務課",null,"0735-72-0180"]
["近畿","和歌山県","串本町","総務課",null,"0735-62-0555"]
["中国","鳥取県"]
["中国","鳥取県","鳥取県","人口減少社会対策課",{"$f":"HYPERLINK($H337,\"ホームページはこちら\")","v":"ホームページはこちら"},"0857-26-7900",null,"https://www.pref.tottori.lg.jp/315512.htm"]
["中国","鳥取県","鳥取市","都市整備部建築住宅課",null,"0857-30-8371"]
["中国","鳥取県","米子市","都市整備部　住宅政策課",null,"0859-23-5263"]
["中国","鳥取県","八頭町","建設課",null,"0859-66-3115"]
["中国","鳥取県","琴浦町","建設住宅課",null,"0858-55-7805"]
["中国","鳥取県","大山町","建設課",null,"0859-53-3186"]
["中国","島根県"]
["中国","島根県","出雲市","出雲市都市建設部建築住宅課",{"$f":"HYPERLINK($H344,\"ホームページはこちら\")","v":"ホームページはこちら"},"0853-21-6150",null,"https://www.city.izumo.shimane.jp/www/contents/1704419903591/index.html"]
["中国","島根県","益田市","建設部建築課",{"$f":"HYPERLINK($H345,\"ホームページはこちら\")","v":"ホームページはこちら"},"0856-31-0382",null,"https://www.city.masuda.lg.jp/soshikikarasagasu/kensetsubu/kenchikuka/7/9231.html"]
["中国","島根県","大田市","建設部都市計画課",null,"0854-83-8110"]
["中国","島根県","江津市","都市計画課",null,"0855-52-7951"]
["中国","島根県","奥出雲町","町民課",null,"0854-54-2510"]
["中国","島根県","飯南町","建設課",null,"0854-76-3942"]
["中国","島根県","川本町","町民生活課",null,"0855-72-0632"]
["中国","島根県","邑南町"]
["中国","島根県","津和野町"]
["中国","島根県","吉賀町","税務住民課",null,"0856-77-1113"]
["中国","島根県","隠岐の島町","建設課　管理住宅係",null,"08512-2-8564"]
["中国","岡山県"]
["中国","岡山県","岡山県","土木部都市局住宅課",{"$f":"HYPERLINK($H356,\"ホームページはこちら\")","v":"ホームページはこちら"},"086-226-7867",null,"https://www.pref.okayama.jp/page/894741.html"]
["中国","岡山県","岡山市","都市整備局住宅・建築部住宅課",{"$f":"HYPERLINK($H357,\"ホームページはこちら\")","v":"ホームページはこちら"},"086-803-1471",null,"https://www.city.okayama.jp/kurashi/0000056028.html"]
["中国","岡山県","倉敷市","建築部住宅課","ホームページはこちら","086-426-3531",null,"https://www.city.kurashiki.okayama.jp/41226.htm"]
["中国","岡山県","津山市","都市建設部管理課住宅係",{"$f":"HYPERLINK($H359,\"ホームページはこちら\")","v":"ホームページはこちら"},"0868-32-2090",null,"https://www.city.tsuyama.lg.jp/life/index2.php?id=10011"]
["中国","岡山県","玉野市","建設部都市計画課",{"$f":"HYPERLINK($H360,\"ホームページはこちら\")","v":"ホームページはこちら"},"0863-32-5544",null,"https://www.city.tamano.lg.jp/soshiki/20/38638.html"]
["中国","岡山県","笠岡市","建設部 都市計画課 公営住宅係",null,"0865-69-2140"]
["中国","岡山県","総社市","建設部建築住宅課",{"$f":"HYPERLINK($H362,\"ホームページはこちら\")","v":"ホームページはこちら"},"0866-92-8287",null,"https://www.city.soja.okayama.jp/kenchikujyuutaku/kurashi/notohanntou_juutakushien.html"]
["中国","岡山県","備前市","産業部土地住宅政策課",null,"0869-64-1851"]
["中国","岡山県","瀬戸内市","産業建設部建築住宅課",null,"0869-22-2649"]
["中国","岡山県","赤磐市","建設事業部建設課",null,"086-955-1485"]
["中国","岡山県","真庭市","建設部都市住宅課",{"$f":"HYPERLINK($H366,\"ホームページはこちら\")","v":"ホームページはこちら"},"0867-42-7781",null,"https://www.city.maniwa.lg.jp/soshiki/44/81929.html"]
["中国","岡山県","美作市","都市整備部都市住宅課",null,"0868-72-6697"]
["中国","岡山県","浅口市","産業建設部建設業務課",null,"0865-44-9014"]
["中国","岡山県","矢掛町","建設課",null,"0866-82-1014"]
["中国","岡山県","鏡野町","建設課",null,"0868-54-2989"]
["中国","岡山県","久米南町","税務住民課",null,"086-728-2115"]
["中国","岡山県","吉備中央町","①建設課\n②社会福祉協議会",null,"①0866-54-1319\n②0866-54-1818"]
["中国","広島県"]
["中国","広島県","呉市","住宅政策課",{"$f":"HYPERLINK($H374,\"ホームページはこちら\")","v":"ホームページはこちら"},"0823-25-3392",null,"https://www.city.kure.lg.jp/soshiki/46/hisaisyajyutaku.html"]
["中国","広島県","竹原市","建設部都市整備課","ホームページはこちら","0846-22-7749",null,"https://www.city.takehara.lg.jp/kurashi_tetsuzuki/sumai/shieijutaku_kosodatejutaku/shiei/7101.html"]
["中国","広島県","東広島市","都市部住宅課",{"$f":"HYPERLINK($H376,\"ホームページはこちら\")","v":"ホームページはこちら"},"082-420-0946",null,"https://www.city.higashihiroshima.lg.jp/soshiki/toshi/4_1/3/38500.html"]
["中国","広島県","廿日市市","建設部住宅政策課","ホームページはこちら","0829-30-9177",null,"https://www.city.hatsukaichi.hiroshima.jp/soshiki/53/106024.html"]
["中国","広島県","大崎上島町","建設課",null,"0846-65-3124"]
["中国","山口県"]
["中国","山口県","山口県","土木建築部住宅課　県営住宅管理班",{"$f":"HYPERLINK($H380,\"ホームページはこちら\")","v":"ホームページはこちら"},"083-933-3880",null,"https://www.pref.yamaguchi.lg.jp/soshiki/135/24224.html"]
["中国","山口県","下関市","住宅政策課",{"$f":"HYPERLINK($H381,\"ホームページはこちら\")","v":"ホームページはこちら"},"083-231-4101",null,"https://www.city.shimonoseki.lg.jp/site/shien-noto/105646.html"]
["中国","山口県","宇部市","住宅政策課",null,"0836-34-8427",null,"https://www.city.ube.yamaguchi.jp/shisei/kouhou/kishahappyou/1008059/1020927/1021307.html"]
["中国","山口県","山口市","山口市都市整備部建築課",{"$f":"HYPERLINK($H383,\"ホームページはこちら\")","v":"ホームページはこちら"},"083-934-2843",null,"https://www.city.yamaguchi.lg.jp/soshiki/83/113867.html"]
["中国","山口県","防府市","土木都市建設部建築課",null,"0835-25-2178"]
["中国","山口県","下松市","住宅建築課住宅係",null,"0833-45-1851"]
["中国","山口県","岩国市","都市開発部建築住宅課",null,"0827-29-5139"]
["中国","山口県","光市","建築住宅課",null,"0833-72-1566"]
["中国","山口県","長門市","建築住宅課",null,"0837-23-1186"]
["中国","山口県","柳井市","建築住宅課",{"$f":"HYPERLINK($H389,\"ホームページはこちら\")","v":"ホームページはこちら"},"0820-22-2111 内線242･243",null,"https://www.city-yanai.jp/soshiki/12/notoshinsai-jutaku.html"]
["中国","山口県","周南市","建設部住宅課市営住宅担当",{"$f":"HYPERLINK($H390,\"ホームページはこちら\")","v":"ホームページはこちら"},"0834-22-8282",null,"https://www.city.shunan.lg.jp/soshiki/36/109974.html"]
["中国","山口県","山陽小野田市","建設部建築住宅課",null,"0836-82-1166"]
["中国","山口県","周防大島町","産業建設環境部生活衛生課",null,"0820-79-1010"]
["中国","山口県","和木町","都市建設課",null,"0827-52-2197"]
["中国","山口県","田布施町"]
["中国","山口県","阿武町","土木建築課",null,"08388-2-3112"]
["四国","徳島県"]
["四国","徳島県","徳島県","徳島県　県土整備部住宅課\n※県を一元的な窓口とする",{"$f":"HYPERLINK($H397,\"ホームページはこちら\")","v":"ホームページはこちら"},"088-621-2590",null,"https://www.pref.tokushima.lg.jp/ippannokata/kurashi/kenchiku/7236601/"]
["四国","徳島県","徳島市",null,null,null,null,"https://www.pref.tokushima.lg.jp/ippannokata/kurashi/kenchiku/7236601/"]
["四国","徳島県","鳴門市",null,null,null,null,"https://www.pref.tokushima.lg.jp/ippannokata/kurashi/kenchiku/7236601/"]
["四国","徳島県","小松島市",null,null,null,null,"https://www.pref.tokushima.lg.jp/ippannokata/kurashi/kenchiku/7236601/"]
["四国","徳島県","阿南市",null,null,null,null,"https://www.pref.tokushima.lg.jp/ippannokata/kurashi/kenchiku/7236601/"]
["四国","徳島県","吉野川市",null,null,null,null,"https://www.pref.tokushima.lg.jp/ippannokata/kurashi/kenchiku/7236601/"]
["四国","徳島県","阿波市",null,null,null,null,"https://www.pref.tokushima.lg.jp/ippannokata/kurashi/kenchiku/7236601/"]
["四国","徳島県","三好市",null,null,null,null,"https://www.pref.tokushima.lg.jp/ippannokata/kurashi/kenchiku/7236601/"]
["四国","徳島県","上勝町",null,null,null,null,"https://www.pref.tokushima.lg.jp/ippannokata/kurashi/kenchiku/7236601/"]
["四国","徳島県","佐那河内村",null,null,null,null,"https://www.pref.tokushima.lg.jp/ippannokata/kurashi/kenchiku/7236601/"]
["四国","徳島県","石井町",null,null,null,null,"https://www.pref.tokushima.lg.jp/ippannokata/kurashi/kenchiku/7236601/"]
["四国","徳島県","那賀町",null,null,null,null,"https://www.pref.tokushima.lg.jp/ippannokata/kurashi/kenchiku/7236601/"]
["四国","徳島県","牟岐町",null,null,null,null,"https://www.pref.tokushima.lg.jp/ippannokata/kurashi/kenchiku/7236601/"]
["四国","徳島県","美波町",null,null,null,null,"https://www.pref.tokushima.lg.jp/ippannokata/kurashi/kenchiku/7236601/"]
["四国","徳島県","松茂町",null,null,null,null,"https://www.pref.tokushima.lg.jp/ippannokata/kurashi/kenchiku/7236601/"]
["四国","徳島県","板野町",null,null,null,null,"https://www.pref.tokushima.lg.jp/ippannokata/kurashi/kenchiku/7236601/"]
["四国","香川県"]
["四国","香川県","香川県","土木部住宅課",{"$f":"HYPERLINK($H414,\"ホームページはこちら\")","v":"ホームページはこちら"},"087-832-3581",null,"https://www.pref.kagawa.lg.jp/jutaku/keneijutaku/notojisin.html"]
["四国","香川県","高松市","市営住宅課",{"$f":"HYPERLINK($H415,\"ホームページはこちら\")","v":"ホームページはこちら"},"087-839-2541",null,"https://www.city.takamatsu.kagawa.jp/kurashi/kurashi/sumai/koeijutaku/20240109.html"]
["四国","香川県","丸亀市","都市整備部　住宅課",{"$f":"HYPERLINK($H416,\"ホームページはこちら\")","v":"ホームページはこちら"},"0877-24-8814",null,"https://www.city.marugame.lg.jp/page/22507.html"]
["四国","香川県","坂出市","建設課（管理係）",{"$f":"HYPERLINK($H417,\"ホームページはこちら\")","v":"ホームページはこちら"},"0877-44-5011",null,"https://www.city.sakaide.lg.jp/soshiki/kensetu/0101notozyuutaku.html"]
["四国","香川県","観音寺市","都市整備課住宅係",null,"0875-23-3955"]
["四国","香川県","東かがわ市","事業部都市整備課",{"$f":"HYPERLINK($H419,\"ホームページはこちら\")","v":"ホームページはこちら"},"0879-26-1304",null,"https://www.higashikagawa.jp/kurashinojoho/sumai/shieijutaku/3863.html"]
["四国","香川県","三豊市","建設部建築住宅課",null,"0875-73-3044"]
["四国","香川県","小豆島町","住まい政策課",null,"0879-82-7011"]
["四国","香川県","綾川町","建設課",{"$f":"HYPERLINK($H422,\"ホームページはこちら\")","v":"ホームページはこちら"},"087-876-5280",null,"https://www.town.ayagawa.lg.jp/docs/2024032300189/"]
["四国","香川県","まんのう町","建設土地改良課",null,"0877-73-0107"]
["四国","愛媛県"]
["四国","愛媛県","愛媛県","保健福祉課",{"$f":"HYPERLINK($H425,\"ホームページはこちら\")","v":"ホームページはこちら"},"089-912-2257",null,"https://www.pref.ehime.jp/page/48936.html"]
["四国","愛媛県","松山市","住宅課",{"$f":"HYPERLINK($H426,\"ホームページはこちら\")","v":"ホームページはこちら"},"089-948-6498",null,"https://www.city.matsuyama.ehime.jp/kurashi/kurashi/jutaku/shieizyuutaku/jutaku_iji_shinsai2.html"]
["四国","愛媛県","今治市","建築住宅課",null,"0898-36-1566"]
["四国","愛媛県","八幡浜市","財政課",null,"0894-22-3111"]
["四国","愛媛県","西条市","施設管理課",null,"0897-52-1561"]
["四国","愛媛県","伊予市","都市整備課",null,"089-909-6361"]
["四国","愛媛県","西予市","建設課",null,"0894-62-6210"]
["四国","愛媛県","久万高原町","建設課",null,"0892-21-1111"]
["四国","愛媛県","砥部町","建設課",null,"089-962-6010"]
["四国","愛媛県","松野町","建設環境課",null,"0895-42-1115"]
["四国","愛媛県","鬼北町","建設課",null,"0895-45-1111"]
["四国","高知県"]
["四国","高知県","高知県","住宅課住宅管理担当",null,"088-823-9855"]
["四国","高知県","高知市","都市建設部住宅政策課",null,"088-823-9463"]
["四国","高知県","室戸市","財産管理課建築住宅班",null,"0887-22-5122"]
["四国","高知県","南国市","住宅課",null,"088-880-6558"]
["四国","高知県","須崎市","須崎市住宅・建築課",null,"0889-42-5692"]
["四国","高知県","宿毛市","都市建設課建築住宅係",null,"0880-62-1251"]
["四国","高知県","香南市","住宅政策課　市営住宅係",null,"0887-57-7536"]
["四国","高知県","馬路村","建設課",null,"0887-44-2336"]
["四国","高知県","仁淀川町","仁淀川町町民課",null,"0889-35-1088"]
["四国","高知県","中土佐町","総務課住宅係",null,"0889-52-2211"]
["四国","高知県","津野町","総務課",null,"0889-55-2311"]
["四国","高知県","四万十町","建設課",null,"0880-22-3120"]
["四国","高知県","大月町","総務課危機管理室",null,"0880-73-1140"]
["四国","高知県","黒潮町","情報防災課",null,"0880-43-2188"]
["九州","福岡県"]
["九州","福岡県","福岡県","建築都市部県営住宅課",{"$f":"HYPERLINK($H452,\"ホームページはこちら\")","v":"ホームページはこちら"},"092-643-3739",null,"https://www.pref.fukuoka.lg.jp/contents/notojutakushien.html"]
["九州","福岡県","北九州市","建築都市局住宅管理課",{"$f":"HYPERLINK($H453,\"ホームページはこちら\")","v":"ホームページはこちら"},"093-582-2556",null,"https://www.city.kitakyushu.lg.jp/contents/924_01581.html"]
["九州","福岡県","福岡市","住宅都市局住宅部住宅運営課",{"$f":"HYPERLINK($H454,\"ホームページはこちら\")","v":"ホームページはこちら"},"092-271-2553",null,"https://www.city.fukuoka.lg.jp/bousai/shien/R6noto/forvictim.html"]
["九州","福岡県","大牟田市","都市整備部建築住宅課",null,"0944-41-2787"]
["九州","福岡県","久留米市","都市建設部　市営住宅課",{"$f":"HYPERLINK($H456,\"ホームページはこちら\")","v":"ホームページはこちら"},"0942-30-9086",null,"https://www.city.kurume.fukuoka.jp/1050kurashi/2080juutaku/3010jyuutaku/2024-0111-1618-388.html"]
["九州","福岡県","直方市","産業建設部建築管理課住宅管理係",null,"0949-25-2262"]
["九州","福岡県","飯塚市","都市建設部住宅課",null,"0948-22-5513"]
["九州","福岡県","田川市","建設経済部　建築住宅課　住宅管理係",{"$f":"HYPERLINK($H459,\"ホームページはこちら\")","v":"ホームページはこちら"},"0947-85-7153",null,"https://www.joho.tagawa.fukuoka.jp/kiji00310161/index.html"]
["九州","福岡県","柳川市","建設部建設課住宅管理係",{"$f":"HYPERLINK($H460,\"ホームページはこちら\")","v":"ホームページはこちら"},"0944-77-8542",null,"https://www.city.yanagawa.fukuoka.jp/kurashi/jutaku/shieijutaku/6739.html"]
["九州","福岡県","八女市","企画部定住対策課住宅係",null,"0943-23-2577"]
["九州","福岡県","筑後市","都市対策課",{"$f":"HYPERLINK($H462,\"ホームページはこちら\")","v":"ホームページはこちら"},"0942-65-7029",null,"https://www.city.chikugo.lg.jp/shimin/_2299/_6043/_30105.html"]
["九州","福岡県","豊前市","都市住宅課住宅建築係",null,"0979-82-8098"]
["九州","福岡県","中間市","都市計画課住宅対策係",null,"093-246-6155"]
["九州","福岡県","小郡市","都市計画課",null,"0942-72-2111"]
["九州","福岡県","筑紫野市","総務部管財課",null,"092-923-1111"]
["九州","福岡県","春日市","総務部管財課",null,"092-584-1111"]
["九州","福岡県","古賀市","管財課　管財係",{"$f":"HYPERLINK($H468,\"ホームページはこちら\")","v":"ホームページはこちら"},"092-942-1168",null,"https://www.city.koga.fukuoka.jp/news/d/5573"]
["九州","福岡県","うきは市","建設課建設管理係",null,"0943-75-4987"]
["九州","福岡県","宮若市","建築都市課　住宅管理係",null,"0949-32-0955"]
["九州","福岡県","嘉麻市","住宅課住宅管理係",null,"0948-42-7062"]
["九州","福岡県","みやま市","都市計画課住宅政策係",{"$f":"HYPERLINK($H472,\"ホームページはこちら\")","v":"ホームページはこちら"},"0944-64-1540",null,"https://www.city.miyama.lg.jp/s041/kurashi/080/040/050/20240124091222.html"]
["九州","福岡県","粕屋町","住民福祉部介護福祉課社会福祉係",{"$f":"HYPERLINK($H473,\"ホームページはこちら\")","v":"ホームページはこちら"},"092-938-0229",null,"https://www.town.kasuya.fukuoka.jp/s013/020/060/320/20240110130018.html"]
["九州","福岡県","鞍手町","管財課契約管財係",null,"0949-42-2111"]
["九州","福岡県","桂川町","建設事業課管理鉱害係",null,"0948-65-3330"]
["九州","福岡県","筑前町","都市計画課　住宅政策係",null,"0946-42-6642"]
["九州","福岡県","大刀洗町","建設課管理係",{"$f":"HYPERLINK($H477,\"ホームページはこちら\")","v":"ホームページはこちら"},"0942-77-6204",null,"https://www.town.tachiarai.fukuoka.jp/page/page_03518.html"]
["九州","福岡県","香春町","住宅水道課住宅管理係",null,"0947-32-8403"]
["九州","福岡県","添田町","住環境整備課",null,"0947-82-1235"]
["九州","福岡県","川崎町","住宅環境課　住宅管理係",null,"0947-72-3000"]
["九州","福岡県","大任町","事業課住宅係",null,"0947-63-3001"]
["九州","福岡県","みやこ町","建築課　営繕係",null,"0930-32-6014"]
["九州","福岡県","吉富町","福祉保険課",null,"0979-24-1123"]
["九州","福岡県","上毛町","住民課",null,"0979-72-3116"]
["九州","佐賀県"]
["九州","佐賀県","佐賀県","県土整備部建築住宅課",{"$f":"HYPERLINK($H486,\"ホームページはこちら\")","v":"ホームページはこちら"},"0952-25-7368",null,"https://www.pref.saga.lg.jp/kiji003100634/index.html"]
["九州","佐賀県","鳥栖市","建設課",null,"0942-85-3600"]
["九州","佐賀県","鹿島市","建設住宅課",null,"0954-63-3415"]
["九州","佐賀県","みやき町","建設課",null,"0942-96-5531"]
["九州","佐賀県","大町町","農林建設課",null,"0952-82-3151"]
["九州","長崎県"]
["九州","長崎県","長崎県","長崎県住宅課\n（県で窓口を一元化）",{"$f":"HYPERLINK($H492,\"ホームページはこちら\")","v":"ホームページはこちら"},"095-894-3101",null,"https://www.pref.nagasaki.jp/bunrui/kurashi-kankyo/sumai/keneijutaku-sumai/646073.html"]
["九州","長崎県","長崎市",null,null,null,null,"https://www.pref.nagasaki.jp/bunrui/kurashi-kankyo/sumai/keneijutaku-sumai/646073.html"]
["九州","長崎県","佐世保市",null,null,null,null,"https://www.pref.nagasaki.jp/bunrui/kurashi-kankyo/sumai/keneijutaku-sumai/646073.html"]
["九州","長崎県","島原市",null,null,null,null,"https://www.pref.nagasaki.jp/bunrui/kurashi-kankyo/sumai/keneijutaku-sumai/646073.html"]
["九州","長崎県","諫早市",null,null,null,null,"https://www.pref.nagasaki.jp/bunrui/kurashi-kankyo/sumai/keneijutaku-sumai/646073.html"]
["九州","長崎県","大村市",null,null,null,null,"https://www.pref.nagasaki.jp/bunrui/kurashi-kankyo/sumai/keneijutaku-sumai/646073.html"]
["九州","長崎県","平戸市",null,null,null,null,"https://www.pref.nagasaki.jp/bunrui/kurashi-kankyo/sumai/keneijutaku-sumai/646073.html"]
["九州","長崎県","松浦市",null,null,null,null,"https://www.pref.nagasaki.jp/bunrui/kurashi-kankyo/sumai/keneijutaku-sumai/646073.html"]
["九州","長崎県","壱岐市",null,null,null,null,"https://www.pref.nagasaki.jp/bunrui/kurashi-kankyo/sumai/keneijutaku-sumai/646073.html"]
["九州","長崎県","五島市",null,null,null,null,"https://www.pref.nagasaki.jp/bunrui/kurashi-kankyo/sumai/keneijutaku-sumai/646073.html"]
["九州","長崎県","雲仙市",null,null,null,null,"https://www.pref.nagasaki.jp/bunrui/kurashi-kankyo/sumai/keneijutaku-sumai/646073.html"]
["九州","長崎県","南島原市",null,null,null,null,"https://www.pref.nagasaki.jp/bunrui/kurashi-kankyo/sumai/keneijutaku-sumai/646073.html"]
["九州","長崎県","長与町",null,null,null,null,"https://www.pref.nagasaki.jp/bunrui/kurashi-kankyo/sumai/keneijutaku-sumai/646073.html"]
["九州","長崎県","東彼杵町",null,null,null,null,"https://www.pref.nagasaki.jp/bunrui/kurashi-kankyo/sumai/keneijutaku-sumai/646073.html"]
["九州","長崎県","川棚町",null,null,null,null,"https://www.pref.nagasaki.jp/bunrui/kurashi-kankyo/sumai/keneijutaku-sumai/646073.html"]
["九州","長崎県","小値賀町",null,null,null,null,"https://www.pref.nagasaki.jp/bunrui/kurashi-kankyo/sumai/keneijutaku-sumai/646073.html"]
["九州","熊本県"]
["九州","熊本県","熊本県","熊本県土木部建築住宅局住宅課",{"$f":"HYPERLINK($H509,\"ホームページはこちら\")","v":"ホームページはこちら"},"096-333-2550",null,"https://www.pref.kumamoto.jp/soshiki/117/193582.html"]
["九州","熊本県","熊本市","市営住宅課",{"$f":"HYPERLINK($H510,\"ホームページはこちら\")","v":"ホームページはこちら"},"096-328-2461",{"$f":"HYPERLINK($I510,\"○\")","v":"○"},"https://www.city.kumamoto.jp/hpKiji/pub/detail.aspx?c_id=5&id=52788&class_set_id=2&class_id=211","https://apply.e-tumo.jp/city-kumamoto-u/offer/offerList_detail?tempSeq=13582"]
["九州","熊本県","玉名市","建設部住宅課市営住宅係",null,"0968-75-1311"]
["九州","熊本県","菊池市","菊池市営住宅管理センター",null,"0968-41-8160"]
["九州","熊本県","阿蘇市","土木部住環境課",null,"0967-22-3111"]
["九州","熊本県","天草市","建設総務課　市営住宅係",null,"0969-32-6794"]
["九州","熊本県","高森町","生活環境課住宅管財係",null,"0967-62-2912"]
["九州","熊本県","苓北町","土木管理課",null,"0969-35-3331"]
["九州","大分県"]
["九州","大分県","大分県","土木建築部公営住宅室",{"$f":"HYPERLINK($H518,\"ホームページはこちら\")","v":"ホームページはこちら"},"097-506-4684",null,"https://www.pref.oita.jp/soshiki/18510/mokutekigainyukyo-notohantoujishin.html"]
["九州","大分県","大分市","大分市土木建築部住宅課",{"$f":"HYPERLINK($H519,\"ホームページはこちら\")","v":"ホームページはこちら"},"097-537-5977",null,"https://www.city.oita.oita.jp/o168/r6notohantou.html"]
["九州","大分県","別府市","別府市住宅管理センター（大分県住宅供給公社）",{"$f":"HYPERLINK($H520,\"ホームページはこちら\")","v":"ホームページはこちら"},"0977-21-2200",null,"https://www.city.beppu.oita.jp/bousai_syoubou/bousaijyouhou/notohantou/jyuutaku.html"]
["九州","大分県","中津市","建設部　建設政策課",{"$f":"HYPERLINK($H521,\"ホームページはこちら\")","v":"ホームページはこちら"},"0979-62-9024",null,"https://www.city-nakatsu.jp/doc/2024011800143/"]
["九州","大分県","日田市","土木建築部建築住宅課",null,"0973-22-8218"]
["九州","大分県","佐伯市","建築住宅課住宅係",{"$f":"HYPERLINK($H523,\"ホームページはこちら\")","v":"ホームページはこちら"},"0972-22-3550",null,"https://www.city.saiki.oita.jp/kiji0038969/index.html"]
["九州","大分県","臼杵市","都市デザイン課",{"$f":"HYPERLINK($H524,\"ホームページはこちら\")","v":"ホームページはこちら"},"0972-63-1111",null,"https://www.city.usuki.oita.jp/article/2024011700016/"]
["九州","大分県","津久見市","まちづくり課",{"$f":"HYPERLINK($H525,\"ホームページはこちら\")","v":"ホームページはこちら"},"0972-82-9515",null,"https://www.city.tsukumi.oita.jp/soshiki/12/26183.html"]
["九州","大分県","豊後高田市","都市建築課",{"$f":"HYPERLINK($H526,\"ホームページはこちら\")","v":"ホームページはこちら"},"0978-25-6274",null,"https://www.city.bungotakada.oita.jp/soshiki/19/21969.html"]
["九州","大分県","杵築市","建設課管理係",null,"0978-62-1811"]
["九州","大分県","宇佐市","宇佐市役所　建築住宅課",{"$f":"HYPERLINK($H528,\"ホームページはこちら\")","v":"ホームページはこちら"},"0978-27-8184",null,"https://www.city.usa.oita.jp/sougo/soshiki/10/somu/1/20501.html"]
["九州","大分県","豊後大野市","建設課",{"$f":"HYPERLINK($H529,\"ホームページはこちら\")","v":"ホームページはこちら"},"0974-22-1001(内2352)",null,"https://www.bungo-ohno.jp/article/2024012200027/"]
["九州","大分県","由布市","建設課",null,"097-582-1273"]
["九州","大分県","国東市","建設課",null,"0978-72-5179"]
["九州","大分県","姫島村","建設課",null,"0978-87-2283"]
["九州","大分県","日出町","都市建設課",null,"0977-73-3172"]
["九州","大分県","九重町","建設課",null,"0973-76-3811"]
["九州","宮崎県"]
["九州","宮崎県","都城市","住宅施設課",null,"0986-23-3105"]
["九州","宮崎県","小林市","管財課",null,"0984-23-0222"]
["九州","宮崎県","えびの市","財産管理課",null,"0984-35-1120"]
["九州","鹿児島県"]
["九州","鹿児島県","鹿児島県","住宅政策室",{"$f":"HYPERLINK($H540,\"ホームページはこちら\")","v":"ホームページはこちら"},"099-286-3735",null,"https://www.pref.kagoshima.jp/ah14/kenjusiteikanri/notohanntoujisinn.html"]
["九州","鹿児島県","鹿児島市","住宅課",{"$f":"HYPERLINK($H541,\"ホームページはこちら\")","v":"ホームページはこちら"},"099-216-1362",null,"https://www.city.kagoshima.lg.jp/kensetu/kenchiku/jutaku/kurashi/sumai/shie/kibo/noto-jisin.html"]
["九州","鹿児島県","鹿屋市","建設部建築住宅課",{"$f":"HYPERLINK($H542,\"ホームページはこちら\")","v":"ホームページはこちら"},"0994-31-1129",null,"https://www.city.kanoya.lg.jp/jyukanri/kurashi/tochi/koe/koejutaku.html"]
["九州","鹿児島県","枕崎市","建設課　建築係",null,"0993-72-1111"]
["九州","鹿児島県","出水市","建設部建築住宅課住宅政策係",null,"0996-63-4066"]
["九州","鹿児島県","指宿市","建築課住宅管理係",null,"0993-22-2111"]
["九州","鹿児島県","垂水市","土木課管理用地係",null,"0994-32-1386"]
["九州","鹿児島県","薩摩川内市","建築住宅課住宅管理グループ",null,"0996-23-5111"]
["九州","鹿児島県","日置市","産業建設部　建設課　管理係",null,"099-273-8871"]
["九州","鹿児島県","霧島市","建設部建築住宅課",{"$f":"HYPERLINK($H549,\"ホームページはこちら\")","v":"ホームページはこちら"},"0995-64-0909",null,"https://www.city-kirishima.jp/kentikujuutaku/kurashi/shiejutaku/1.html"]
["九州","鹿児島県","いちき串木野市","都市建設課",null,"0996-21-5112"]
["九州","鹿児島県","南さつま市","建築住宅課　住宅係",{"$f":"HYPERLINK($H551,\"ホームページはこちら\")","v":"ホームページはこちら"},"0993-76-1629",null,"https://www.city.minamisatsuma.lg.jp/living/sumai-tochi/bunjo/shieijutaku/e029293.html"]
["九州","鹿児島県","志布志市","建設課　建築住宅グループ",{"$f":"HYPERLINK($H552,\"ホームページはこちら\")","v":"ホームページはこちら"},"099-474-1111",null,"https://www.city.shibushi.lg.jp/soshiki/12/24531.html"]
["九州","鹿児島県","南九州市","都市政策課",null,"0993-83-2511"]
["九州","鹿児島県","伊佐市","建設課",null,"0995-23-1311"]
["九州","鹿児島県","姶良市","建設部建築住宅課",null,"0995-66-3409"]
["九州","鹿児島県","大崎町","建設課",null,"099-476-1111"]
["九州","鹿児島県","東串良町","建設課",null,"0994-63-3126"]
["九州","鹿児島県","錦江町","錦江町役場建設課住宅水道チーム",null,"0994-22-3033"]
["九州","鹿児島県","肝付町","建設課",null,"0994-65-8424"]
["九州","鹿児島県","徳之島町","建設課・学校教育課",null,"0997-82-1155"]
["九州","鹿児島県","和泊町","土木課",null,"0997-84-3520"]
["沖縄","沖縄県"]
["沖縄","沖縄県","沖縄県","沖縄県土木建築部住宅課",{"$f":"HYPERLINK($H563,\"ホームページはこちら\")","v":"ホームページはこちら"},"098-866-2418",null,"https://www.pref.okinawa.lg.jp/site/chijiko/bosai/r6notohantoushien.html"]
["沖縄","沖縄県","那覇市","まちなみ共創部市営住宅課",null,"098-951-3262"]
["沖縄","沖縄県","金武町","住民生活課生活環境係",null,"098-968-2460"]

{"sheet":"東北","index":1,"n_rows":89,"n_cols":10,"rows_kept":89,"cut":false,"hidden":false,"merged":[[41,1,41,6],[60,1,60,6],[64,1,64,6],[82,1,82,6],[1,1,1,6],[2,5,2,6],[3,5,3,6],[5,1,5,6],[14,1,14,6]]}
[null,null,null,null,null,null,null,null,null,{"$f":"SUBTOTAL(103,C6:C89)","v":78}]
[null,"令和６年能登半島地震で被災された方の申込みを受け付けている\n公営住宅等の問合せ先一覧【東北】"]
[null,null,null,null,null,"※令和７年５月３０日時点"]
[null,null,null,null,null,"※確認中のため空欄の箇所あり"]
[null,"都道府県","事業主体","担当部署","ホームページＵＲＬ","電話番号","オンライン受付","ホームページＵＲＬ","オンライン受付"]
["東北","青森県"]
["東北","青森県","青森県","県土整備部建築住宅課",null,"017-734-9692"]
["東北","青森県","青森市","都市整備部住宅政策課","ホームページはこちら","017-734-5572"]
["東北","青森県","弘前市","建設部建築住宅課",null,"0172-35-1321"]
["東北","青森県","むつ市","住宅政策課",null,"0175-22-1111(内線2763)"]
["東北","青森県","平川市","平川市健康福祉部福祉課",null,"0172-44-1111"]
["東北","青森県","板柳町","地域整備課",null,"0172-73-2111"]
["東北","青森県","野辺地町","建設水道課",null,"0175-64-2111"]
["東北","青森県","風間浦村","産業建設課",null,"0175-35-2111"]
["東北","岩手県"]
["東北","岩手県","岩手県","県土整備部建築住宅課",{"$f":"HYPERLINK($H16,\"ホームページはこちら\")","v":"ホームページはこちら"},"019-629-5931",null,"https://www.pref.iwate.jp/kurashikankyou/kenchiku/kenei/1071291.html"]
["東北","岩手県","盛岡市","建設部建築住宅課",{"$f":"HYPERLINK($H17,\"ホームページはこちら\")","v":"ホームページはこちら"},"019-626-7533",null,"https://www.city.morioka.iwate.jp/kurashi/sumai/shieijutaku/1046882.html"]
["東北","岩手県","宮古市","都市整備部建築住宅課",null,"0193-68-9107"]
["東北","岩手県","大船渡市","都市整備部住宅管理課",{"$f":"HYPERLINK($H19,\"ホームページはこちら\")","v":"ホームページはこちら"},"0192-27-3111（代表）",null,"https://www.city.ofunato.iwate.jp/soshiki/bousai/31347.html"]
["東北","岩手県","花巻市","建設部建築住宅課",{"$f":"HYPERLINK($H20,\"ホームページはこちら\")","v":"ホームページはこちら"},"0198-41-3566",null,"https://www.city.hanamaki.iwate.jp/kurashi/anshin_anzen/bousai_saigai/1020624/index.html"]
["東北","岩手県","北上市","北上市都市整備部都市計画課",null,"0197-72-8278"]
["東北","岩手県","久慈市","建設部建設企画課",null,"0194-52-2111"]
["東北","岩手県","遠野市","環境整備部建設課",{"$f":"HYPERLINK($H23,\"ホームページはこちら\")","v":"ホームページはこちら"},"0198-62-2111",null,"https://www.city.tono.iwate.jp/index.cfm/50,75381,331,html"]
["東北","岩手県","一関市","建設部都市整備課",{"$f":"HYPERLINK($H24,\"ホームページはこちら\")","v":"ホームページはこちら"},"0191-21-8541",null,"https://www.city.ichinoseki.iwate.jp/index.cfm/8,163908,138,html"]
["東北","岩手県","陸前高田市","建設部建設課",{"$f":"HYPERLINK($H25,\"ホームページはこちら\")","v":"ホームページはこちら"},"0192-54-2111",null,"https://www.city.rikuzentakata.iwate.jp/bosai_anzen/notohanto_jishin/7605.html"]
["東北","岩手県","釜石市","建設部都市計画課",{"$f":"HYPERLINK($H26,\"ホームページはこちら\")","v":"ホームページはこちら"},"0193-22-2111（内線437）",null,"https://www.city.kamaishi.iwate.jp/docs/2024010900059/"]
["東北","岩手県","二戸市","二戸市建設整備部　都市計画課",null,"0195-23-0183"]
["東北","岩手県","八幡平市","建設課",null,"0195-74-2111"]
["東北","岩手県","雫石町","地域整備課",null,"019-692-6406"]
["東北","岩手県","葛巻町","建設水道課",null,"0195-65-8988"]
["東北","岩手県","岩手町","建設課都市住宅係",null,"0195-62-2111"]
["東北","岩手県","紫波町","建設部　都市計画課",null,"019-672-2111"]
["東北","岩手県","矢巾町","道路住宅課　住宅政策係",null,"019-611-2631"]
["東北","岩手県","金ケ崎町","金ケ崎町都市建設課",null,"0197-42-2111"]
["東北","岩手県","平泉町","建設水道課",null,"0191-46-5569",null,"https://www.town.otsuchi.iwate.jp/gyosei/docs/448294.html"]
["東北","岩手県","住田町","建設課",null,"0192-46-2115",null,"https://www.town.yamada.iwate.jp/docs/6819.html"]
["東北","岩手県","大槌町","地域整備課",{"$f":"HYPERLINK($H37,\"ホームページはこちら\")","v":"ホームページはこちら"},"0193-42-8722",null,"https://www.town.iwaizumi.lg.jp/docs/2024011900010/"]
["東北","岩手県","山田町","都市計画課建築住宅係",{"$f":"HYPERLINK($H38,\"ホームページはこちら\")","v":"ホームページはこちら"},"0193-82-3111（内線252）"]
[null,"岩手県","岩泉町","地域整備課住宅対策室",{"$f":"HYPERLINK($H39,\"ホームページはこちら\")","v":"ホームページはこちら"},"0194-22-2111"]
[null,"岩手県","洋野町","町民生活課",null,"0194-65-5914"]
["東北","岩手県","一戸町","建設部地域整備課",null,"0195-33-2111"]
["東北","宮城県"]
["東北","宮城県","宮城県","土木部住宅課",{"$f":"HYPERLINK($H43,\"ホームページはこちら\")","v":"ホームページはこちら"},"022-211-3252",null,"https://www.pref.miyagi.jp/soshiki/juutaku/notohanntouzishinn.html"]
["東北","宮城県","仙台市","市営住宅管理課",{"$f":"HYPERLINK($H44,\"ホームページはこちら\")","v":"ホームページはこちら"},"022-214-8331",null,"https://www.city.sendai.jp/siei-kikaku/notohanntoujisin.html"]
["東北","宮城県","石巻市","建設部住宅課",{"$f":"HYPERLINK($H45,\"ホームページはこちら\")","v":"ホームページはこちら"},"0225-95-1111",null,"https://www.city.ishinomaki.lg.jp/cont/10503600/001/099/20240110190758.html"]
["東北","宮城県","塩竈市","産業建設部まちづくり・建築課",null,"022-364-2510"]
["東北","宮城県","白石市","建設部建設課",{"$f":"HYPERLINK($H47,\"ホームページはこちら\")","v":"ホームページはこちら"},"0224-22-1326"]
["東北","宮城県","多賀城市","都市産業部都市計画課",null,"022-368-4242",null,"http://www.city.shiroishi.miyagi.jp/soshiki/23/"]
["東北","宮城県","登米市","建設部住宅都市整備課",null,"0220-34-2316",null,"https://www.city.natori.miyagi.jp/soshiki/kensetsu/node_251/node_105837"]
["東北","宮城県","栗原市","建設部建築住宅課",{"$f":"HYPERLINK($H50,\"ホームページはこちら\")","v":"ホームページはこちら"},"0228-22-1153"]
["東北","宮城県","大崎市","建築住宅課",{"$f":"HYPERLINK($H51,\"ホームページはこちら\")","v":"ホームページはこちら"},"0229-23-2108"]
["東北","宮城県","蔵王町","建設課",null,"0224-33-2214",null,"https://www.kuriharacity.jp/li/050/150/020/index.html"]
["東北","宮城県","丸森町","建設課建築住宅班",{"$f":"HYPERLINK($H53,\"ホームページはこちら\")","v":"ホームページはこちら"},"0224-72-3032"]
["東北","宮城県","山元町","建設課",{"$f":"HYPERLINK($H54,\"ホームページはこちら\")","v":"ホームページはこちら"},"0223-29-8005",null,"https://www.city.osaki.miyagi.jp/shisei/shiseijoho/kenchiku_jutaku_kaihatsu/3/17933.html"]
["東北","宮城県","七ヶ浜町","建設課管理係",null,"022-357-7441"]
["東北","宮城県","大和町","大和町役場都市建設課",null,"022-345-7502"]
["東北","宮城県","色麻町","色麻町建設水道課",null,"0229-65-2224"]
["東北","宮城県","加美町","町民課",null,"0229-63-3112"]
["東北","宮城県","女川町","町民生活課　住宅係",null,"0225-54-3131",null,"https://www.town.marumori.miyagi.jp/news/detail.php?news=425"]
["東北","宮城県","南三陸町","建設課",null,"0226-46-1377",null,"https://www.town.yamamoto.miyagi.jp/soshiki/15/23318.html"]
["東北","秋田県"]
["東北","秋田県","秋田県","建築住宅課",null,"018-860-2563"]
["東北","秋田県","能代市","都市整備部　都市整備課",null,"0185-89-2194"]
["東北","秋田県","八峰町","八峰町建設課",null,"0185-76-4610"]
["東北","山形県"]
["東北","山形県","山形県","村山総合支庁建設部建築課\n置賜総合支庁建設部建築課\n庄内総合支庁建設部建築課",{"$f":"HYPERLINK($H66,\"ホームページはこちら\")","v":"ホームページはこちら"},"村山管内:023-621‐8271\n置賜管内:0238‐35‐9054\n庄内管内:0235‐66‐5639",null,"https://www.pref.yamagata.jp/180025/20240112notohantou.html"]
["東北","山形県","山形市","まちづくり政策部 管理住宅課　",null,"023-641-1212"]
["東北","山形県","米沢市","建設部建築住宅課",{"$f":"HYPERLINK($H68,\"ホームページはこちら\")","v":"ホームページはこちら"},"0238-22-51111",null,"https://www.city.yonezawa.yamagata.jp/soshiki/6/1026/2/3/7554.html"]
["東北","山形県","鶴岡市","建設部 建築課 住宅支援係",null,"0235-35-1428"]
["東北","山形県","酒田市","酒田市建設部建築課公営住宅係",null,"0234-26-5747"]
["東北","山形県","新庄市","都市整備課建築住宅室",null,"0233-29-5821"]
["東北","山形県","寒河江市","建設管理課",{"$f":"HYPERLINK($H72,\"ホームページはこちら\")","v":"ホームページはこちら"},"0237-85-1627",null,"https://www.city.sagae.yamagata.jp/kurashi/sumai/jyutaku/notohantoshieijuutak.html"]
["東北","山形県","村山市","建設課管理係",null,"0237-55-2111(内線231)"]
["東北","山形県","天童市","建設部都市計画課",null,"023-654-1111"]
["東北","山形県","尾花沢市","建設課",null,"0237-22-1114"]
["東北","山形県","山辺町","建設課管理用地係",null,"023-667-1113"]
["東北","山形県","中山町","建設課　建設整備グループ",null,"023-662-2116"]
["東北","山形県","西川町","建設水道課",null,"0237-74-4120"]
["東北","山形県","朝日町","建設水道課",{"$f":"HYPERLINK($H79,\"ホームページはこちら\")","v":"ホームページはこちら"},"0237-67-2115",null,"https://www.town.asahi.yamagata.jp/portal/soshikinogoannai/kensetsusuidoka/seibigakari/3/tyoueizyuutaku/9367.html"]
["東北","山形県","大江町","大江町建設水道課",null,"0237-62-2116"]
["東北","山形県","白鷹町","建設課",null,"0238-85-6140"]
["東北","山形県","三川町","建設環境課",null,"0235-35-7035"]
["東北","福島県"]
["東北","福島県","福島市","福島市都市政策部住宅政策課市営住宅係",null,"024-525-3757"]
["東北","福島県","郡山市","郡山市営住宅管理センター\n（建設構想部住宅政策課）",null,"024-924-7100"]
["東北","福島県","南相馬市","建築住宅課","ホームページはこちら","0244-24-5253"]
["東北","福島県","矢吹町","都市整備課",null,"0248-42-2116"]
["東北","福島県","広野町","総務課",null,"0240-27-2111"]
["東北","福島県","飯舘村","建設課建設管理係",null,"0244-42-1624"]

{"sheet":"関東","index":2,"n_rows":95,"n_cols":10,"rows_kept":95,"cut":false,"hidden":false,"merged":[[69,1,69,6],[84,1,84,6],[34,1,34,6],[55,1,55,6],[66,1,66,6],[1,1,1,6],[2,5,2,6],[3,5,3,6],[5,1,5,6],[16,1,16,6]]}
[null,null,null,null,null,null,null,null,null,{"$f":"SUBTOTAL(103,C6:C95)","v":83}]
[null,"令和６年能登半島地震で被災された方の申込みを受け付けている\n公営住宅等の問合せ先一覧【関東】"]
[null,null,null,null,null,"※令和７年５月３０日時点"]
[null,null,null,null,null,"※確認中のため空欄の箇所あり"]
[null,"都道府県","事業主体","担当部署","ホームページＵＲＬ","電話番号","オンライン受付","ホームページＵＲＬ","オンライン受付"]
["関東","茨城県"]
["関東","茨城県","茨城県","土木部都市局住宅課",{"$f":"HYPERLINK($H7,\"ホームページはこちら\")","v":"ホームページはこちら"},"029-301-4750",null,"https://www.pref.ibaraki.jp/doboku/jutaku/kanri/01class/class14/04kenei/notohantoujishin_hisaisya.html"]
["関東","茨城県","水戸市","都市計画部住宅政策課",{"$f":"HYPERLINK($H8,\"ホームページはこちら\")","v":"ホームページはこちら"},"029-232-9200",null,"https://www.city.mito.lg.jp/page/65853.html"]
["関東","茨城県","日立市","保健福祉部　市営住宅課",null,"0294-22-3111（内線303）"]
["関東","茨城県","土浦市","建設部住宅営繕課",{"$f":"HYPERLINK($H10,\"ホームページはこちら\")","v":"ホームページはこちら"},"029-826-1111",null,"https://www.city.tsuchiura.lg.jp/page/page019575.html"]
["関東","茨城県","古河市","都市建設部営繕住宅課",null,"0280-76-1511"]
["関東","茨城県","下妻市","建設部建設課",null,"0296-45-8127"]
["関東","茨城県","笠間市","都市建設部都市計画課管理G",null,"笠間市都市計画課\n0296-77-1101(内線575)\n市営住宅受付窓口 0296-72-6115"]
[null,"茨城県","ひたちなか市","建設部住宅課",null,"029-273-0111 内6212"]
["関東","茨城県","鹿嶋市","都市整備部　都市計画課",null,"0299-82-2911"]
["関東","茨城県","境町","企画部財務課管財室",null,"0280-81-1318"]
["関東","栃木県"]
["関東","栃木県","栃木県","県土整備部住宅課",{"$f":"HYPERLINK($H18,\"ホームページはこちら\")","v":"ホームページはこちら"},"028-623-2486",null,"https://www.pref.tochigi.lg.jp/h11/town/jyuutaku/kouei/r06notohantoujisin-keneijyutaku.html"]
["関東","栃木県","宇都宮市","都市整備部住宅政策課","ホームページはこちら","028-632-2555",null,"https://www.city.utsunomiya.tochigi.jp/kurashi/machi/jutaku/index.html"]
["関東","栃木県","足利市","都市建設部建築・住宅政策課","ホームページはこちら","0284-20-2198",null,"https://www.city.ashikaga.tochigi.jp/living/000019/000130/000577/p005594.html"]
["関東","栃木県","栃木市","都市建設部　建築住宅課","ホームページはこちら","0282-21-2451",null,"https://www.city.tochigi.lg.jp/site/fornoto/67579.html"]
["関東","栃木県","佐野市","都市建設部建築住宅課住宅政策係","ホームページはこちら","0283-20-3103",null,"https://www.city.sano.lg.jp/soshikiichiran/sougou/toshibrandsuishin/gyomuannai/koho/noto/23172.html"]
["関東","栃木県","鹿沼市","都市建設部建築課住宅係","ホームページはこちら","0289-63-2217",null,"https://www.city.kanuma.tochigi.jp/0130/info-0000009354-1.html"]
["関東","栃木県","日光市","建設部建築住宅課市営住宅係","ホームページはこちら","0288-21-5164",null,"https://www.city.nikko.lg.jp/kurashi_tetsuzuki/sumai/3/7884.html"]
["関東","栃木県","小山市","建築課住宅管理係","ホームページはこちら","0285-22-9212",null,"https://www.city.oyama.tochigi.jp/kurashi/bosai-bohan/bosai/r06notohantoujisin-jyutaku.html"]
["関東","栃木県","大田原市","建設部建築住宅課","ホームページはこちら","0287-23-8724",null,"https://www.city.moka.lg.jp/kakuka/kensetsu/gyomu/jutaku_koen/shiei_jutaku/21590.html"]
["関東","栃木県","那須塩原市","建設部都市計画課","ホームページはこちら","0287-62-7162",null,"https://www.city.ohtawara.tochigi.jp/docs/2024011900010/"]
["関東","栃木県","さくら市","建設部建設課",null,"028-681-1119",null,"https://www.city.nasushiobara.tochigi.jp/soshikikarasagasu/toshikeikakuka/sumai_kurashi/3/19017.html"]
["関東","栃木県","上三川町","建築課住宅係",null,"0285-56-9145"]
["関東","栃木県","茂木町","保健福祉課",null,"0285-63-5631"]
["関東","栃木県","野木町","都市整備課施設保全係",null,"0280ｰ57ｰ4155"]
["関東","栃木県","塩谷町","建設水道課",null,"0287-45-1114"]
["関東","栃木県","高根沢町","都市整備課",null,"028-675-8107"]
["関東","栃木県","那珂川町","建設課",null,"0287-92-1118"]
["関東","群馬県"]
["関東","群馬県","群馬県","県土整備部住宅政策課",{"$f":"HYPERLINK($H36,\"ホームページはこちら\")","v":"ホームページはこちら"},"027-226-3718",{"$f":"HYPERLINK($I36,\"○\")","v":"○"},"https://www.pref.gunma.jp/page/623655.html","https://www.pref.gunma.jp/page/623655.html"]
["関東","群馬県","高崎市","群馬県住宅供給公社高崎支所","ホームページはこちら","027-321-1267",null,"https://www.city.takasaki.gunma.jp/page/35768.html"]
["関東","群馬県","桐生市","都市整備部建築住宅課","ホームページはこちら","0277-48-9029",null,"https://www.city.kiryu.lg.jp/kurashi/jutaku/1018099/1018100/1001138.html"]
["関東","群馬県","伊勢崎市","建設部住宅課住宅管理係","ホームページはこちら","0270-27-2764",null,"https://www.city.isesaki.lg.jp/soshiki/kensetu/jyutaku/jyuutakukanri/19763.html"]
["関東","群馬県","太田市","都市政策部　建築住宅課","ホームページはこちら","0276-47-1898",null,"https://www.city.ota.gunma.jp/page/1031213.html"]
["関東","群馬県","館林市","建築課住宅施設係","ホームページはこちら","0276-47-5156",null,"https://www.city.tatebayashi.gunma.jp/s069/kurashi/080/080/20240116091627.html"]
["関東","群馬県","渋川市","建設交通部建築住宅課",null,"0279-22-2072"]
["関東","群馬県","藤岡市","都市建設部建築課住宅係",null,"0274-40-2326(直通)"]
["関東","群馬県","安中市","まちづくり部建築住宅課住宅政策係",null,"027-382-1111"]
["関東","群馬県","みどり市","都市建設部建築住宅課",null,"0277-76-2189"]
["関東","群馬県","中之条町","建設課　都市計画・住宅係",null,"0279-75-8828"]
["関東","群馬県","長野原町","建設課",null,"0279-82-3010"]
["関東","群馬県","嬬恋村","建設課",null,"0279-96-1973"]
["関東","群馬県","高山村","建設課",null,"0279-26-7950"]
["関東","群馬県","みなかみ町","群馬県住宅供給公社みなかみ支所",null,"0278-25-8423"]
["関東","群馬県","板倉町","都市建設課　計画管理係",null,"0276-82-6151"]
["関東","群馬県","明和町","都市建設課",null,"0276-84-3111(内線134)"]
["関東","群馬県","千代田町","建設下水道課",null,"0276-86-7004"]
["関東","群馬県","大泉町","都市建設部　都市整備課",{"$f":"HYPERLINK($H54,\"ホームページはこちら\")","v":"ホームページはこちら"},"0276-63-3111(内線243)",null,"https://www.town.oizumi.gunma.jp/s022/kurashi/010/010/100/20240115113728.html"]
["関東","群馬県","邑楽町","建設環境課　住宅政策係",null,"0276-47-5031"]
["関東","千葉県"]
["関東","千葉県","千葉市","千葉市住宅供給公社",{"$f":"HYPERLINK($H57,\"ホームページはこちら\")","v":"ホームページはこちら"},"043-301-6271",null,"https://www.city.chiba.jp/toshi/kenchiku/jutakuseibi/2024notohantouzisinshien.html"]
["関東","千葉県","銚子市","都市整備課　　都市整備室",{"$f":"HYPERLINK($H58,\"ホームページはこちら\")","v":"ホームページはこちら"},"0479-24-8899",null,"https://www.city.choshi.chiba.jp/business/page1401_00011.html"]
["関東","千葉県","野田市","営繕課 市営住宅係",{"$f":"HYPERLINK($H59,\"ホームページはこちら\")","v":"ホームページはこちら"},"04-7123-1194",null,"https://www.city.noda.chiba.jp/kurashi/seikatsu/kurashi/1035708/1040303.html"]
["関東","千葉県","茂原市","都市建設部　建築課","ホームページはこちら","0475-20-1588",null,"https://www.city.mobara.chiba.jp/0000008174.html"]
["関東","千葉県","佐倉市","都市部 住宅課","ホームページはこちら","043-484-6168",null,"https://www.city.sakura.lg.jp/soshiki/jutakuka/index.html"]
["関東","千葉県","八千代市","健康福祉課",null,"047-421-6731"]
[null,"千葉県","我孫子市","建築住宅課",{"$f":"HYPERLINK($H63,\"ホームページはこちら\")","v":"ホームページはこちら"},"04-7185-1672",null,"https://www.city.abiko.chiba.jp/kurashi/sumai/shiei_kouei/noto_jyuutakushien.html"]
["関東","千葉県","鎌ケ谷市","建築住宅課","ホームページはこちら","047-445-1472",null,"https://www.city.kamagaya.chiba.jp/kurashi-tetsuzuki/sumai/juutaku/r6notojyuutaku.html"]
["関東","千葉県","袖ケ浦市","都市建設部都市整備課","ホームページはこちら","0438-62-3645",null,"https://www.city.sodegaura.lg.jp/site/tokusetusite/shiei-juutaku.html"]
["関東","千葉県","いすみ市","都市整備課",null,"0470-62-1204"]
["関東","東京都"]
["関東","東京都","新宿区","都市計画部住宅課",{"$f":"HYPERLINK($H68,\"ホームページはこちら\")","v":"ホームページはこちら"},"03-5273-3787",null,"https://www.city.shinjuku.lg.jp/seikatsu/jutaku01_000001_00040.html"]
["関東","東京都","品川区","都市環境部木密整備推進課","ホームページはこちら","03-5742-6779",null,"https://www.city.suginami.tokyo.jp/news/r0601/1092710.html","https://www.city.suginami.tokyo.jp/news/r0601/1092710.html"]
["関東","山梨県"]
["関東","山梨県","山梨県","住宅対策室",{"$f":"HYPERLINK($H71,\"ホームページはこちら\")","v":"ホームページはこちら"},"055-223-1732",null,"https://www.pref.yamanashi.jp/ju-taisaku/notojishin2024.html"]
["関東","山梨県","富士吉田市","都市基盤部建築住宅課",{"$f":"HYPERLINK($H72,\"ホームページはこちら\")","v":"ホームページはこちら"},"0555-22-1111",null,"https://www.city.fujiyoshida.yamanashi.jp/info/4973"]
["関東","山梨県","山梨市","建設課　市営住宅担当",null,"0553-22-1111"]
["関東","山梨県","大月市","産業建設部建設課",null,"0554-20-1852"]
["関東","山梨県","韮崎市","営繕住宅課　住宅管理担当",null,"0551-22-1111(257)"]
["関東","山梨県","北杜市","建設部住宅課",{"$f":"HYPERLINK($H76,\"ホームページはこちら\")","v":"ホームページはこちら"},"0551-42-1362",null,"https://www.city.hokuto.yamanashi.jp/docs/26493.html"]
["関東","山梨県","甲斐市","建設課",null,"055-278-1668"]
["関東","山梨県","笛吹市","建設部　建設総務課　総務住宅担当",null,"055-261-3332"]
["関東","山梨県","甲州市","建設課　住宅担当",null,"0553-32-5071"]
["関東","山梨県","身延町","建設課　建築住宅担当",null,"0556-42-4808"]
["関東","山梨県","富士川町","都市整備課　住宅担当",null,"0556-22-7214"]
["関東","山梨県","西桂町","建設産業課",null,"0555-25-2121"]
["関東","山梨県","忍野村","建設課・教育委員会",null,"0555-84-7793(建)  0555-84-2042(教)"]
["関東","山梨県","小菅村","源流振興課",null,"0428-87-0111"]
["関東","長野県"]
["関東","長野県","長野県","建設部建築住宅課公営住宅室",null,"026-235-7337",null,"https://www.pref.nagano.lg.jp/jutaku/kurashi/sumai/kene/ichiziteikyo.html"]
["関東","長野県","岡谷市","建設水道部都市計画課",null,"0266-23-4811",null,"https://www.pref.nagano.lg.jp/jutaku/kurashi/sumai/kene/ichiziteikyo.html"]
["関東","長野県","茅野市","都市建設部都市計画課",null,"0266-72-2101",null,"https://www.pref.nagano.lg.jp/jutaku/kurashi/sumai/kene/ichiziteikyo.html"]
["関東","長野県","佐久市","建設部建築住宅住宅係",null,"0267-62-3430",null,"https://www.pref.nagano.lg.jp/jutaku/kurashi/sumai/kene/ichiziteikyo.html"]
["関東","長野県","東御市","都市部整備部建築課住宅係",null,"0268-64-5882",null,"https://www.pref.nagano.lg.jp/jutaku/kurashi/sumai/kene/ichiziteikyo.html"]
["関東","長野県","南相木村","振興課",null,"0267-78-2121",null,"https://www.pref.nagano.lg.jp/jutaku/kurashi/sumai/kene/ichiziteikyo.html"]
["関東","長野県","軽井沢町","住民課住民係",null,"0267-45-8540",null,"https://www.pref.nagano.lg.jp/jutaku/kurashi/sumai/kene/ichiziteikyo.html"]
["関東","長野県","飯島町","建設水道課調査計画係",null,"0265-86-3111",null,"https://www.pref.nagano.lg.jp/jutaku/kurashi/sumai/kene/ichiziteikyo.html"]
["関東","長野県","大桑村","住民課",null,"0264-55-3080",null,"https://www.pref.nagano.lg.jp/jutaku/kurashi/sumai/kene/ichiziteikyo.html"]
["関東","長野県","朝日村","建設環境課建設農地係",null,"0263-99-4103",null,"https://www.pref.nagano.lg.jp/jutaku/kurashi/sumai/kene/ichiziteikyo.html"]

{"sheet":"北陸","index":3,"n_rows":30,"n_cols":10,"rows_kept":30,"cut":false,"hidden":false,"merged":[[5,1,5,6],[10,1,10,6],[23,1,23,6],[27,1,27,6],[1,1,1,6],[2,5,2,6],[3,5,3,6]]}
[null,null,null,null,null,null,null,null,null,{"$f":"SUBTOTAL(103,C6:C30)","v":21}]
[null,"令和６年能登半島地震で被災された方の申込みを受け付けている\n公営住宅等の問合せ先一覧【北陸】"]
[null,null,null,null,null,"※令和７年５月３０日時点"]
[null,null,null,null,null,"※確認中のため空欄の箇所あり"]
[null,"都道府県","事業主体","担当部署","ホームページＵＲＬ","電話番号","オンライン受付","ホームページＵＲＬ","オンライン受付"]
["北陸","新潟県"]
["北陸","新潟県","新潟県","新潟県住宅供給公社",{"$f":"HYPERLINK($H7,\"ホームページはこちら\")","v":"ホームページはこちら"},"025-285-6111",null,"http://www.niigata-kousha.or.jp"]
["北陸","新潟県","新潟市","建築部住環境政策課","ホームページはこちら","025-226-2817",null,"https://www.city.niigata.lg.jp/kurashi/jyutaku/jukankyo/01sieijutaku/R6jishin_nyuukyo.html"]
["北陸","新潟県","柏崎市","都市整備部建築住宅課公営住宅係","ホームページはこちら","0257-21-2290",null,"https://www.city.kashiwazaki.lg.jp/kurashi_tetsuzuki/sumai_seikatsu/jutaku_tochi/2/39274.html"]
["北陸","新潟県","上越市","建築住宅課公営住宅係",{"$f":"HYPERLINK($H10,\"ホームページはこちら\")","v":"ホームページはこちら"},"025-526-5111",null,"https://www.city.joetsu.niigata.jp/site/r6-01-01-earthquake/shienlist.html"]
["北陸","富山県"]
["北陸","富山県","富山県","土木部建築住宅課",{"$f":"HYPERLINK($H12,\"ホームページはこちら\")","v":"ホームページはこちら"},"076-444-3358",null,"https://www.pref.toyama.jp/1507/kurashi/seikatsu/sumai/kj20240102-1.html"]
["北陸","富山県","富山市","建設部市営住宅課","ホームページはこちら","076-443-2097",null,"https://www.city.toyama.lg.jp/bosai/bosai/1010665/1014492.html"]
["北陸","富山県","高岡市","都市創造部建築政策課","ホームページはこちら","0766-20-1403",null,"https://www.city.takaoka.toyama.jp/soshiki/kohohasshinka/2/3/2/1/9915.html"]
["北陸","富山県","魚津市","産業建設部都市計画課","ホームページはこちら","0765-23-1031",null,"https://www.city.uozu.toyama.jp/guide/svGuideDtl.aspx?servno=22936"]
["北陸","富山県","滑川市","都市計画課",null,"076-475-1453"]
["北陸","富山県","黒部市","黒部市都市創造部都市計画課","ホームページはこちら","0765-54-2647",null,"https://www.city.kurobe.toyama.jp/news/detail.aspx?servno=36624"]
["北陸","富山県","砺波市","建設水道部都市整備課","ホームページはこちら","0763-33-1447",null,"https://www.city.tonami.lg.jp/info/66602p/"]
["北陸","富山県","小矢部市","産業建設部都市建設課",null,"0766-67-1760"]
["北陸","富山県","南砺市","市民協働部南砺で暮らしません課","ホームページはこちら","0763-23-2037",null,"https://www.city.nanto.toyama.jp/cms-sypher/www/info/detail.jsp?id=7736"]
["北陸","富山県","上市町","建設課",null,"076-472-2477"]
["北陸","富山県","立山町","建設課建築住宅係",{"$f":"HYPERLINK($H22,\"ホームページはこちら\")","v":"ホームページはこちら"},"076-462-9976"]
["北陸","富山県","入善町","住まい・まちづくり課",{"$f":"HYPERLINK($H23,\"ホームページはこちら\")","v":"ホームページはこちら"},"0765-72-3841",null,"https://www.town.tateyama.toyama.jp/emergency/R60101/9505.html"]
["北陸","石川県"]
["北陸","石川県","輪島市","建設部　まちづくり推進課",null,"0768-23-1156",null,"https://www.pref.ishikawa.lg.jp/kenju/r6notojishin-kenei.html"]
["北陸","石川県","珠洲市","環境建設課",null,"0768-82-7756",null,"https://www4.city.kanazawa.lg.jp/soshikikarasagasu/jutakuseisakuka/25775.html"]
["北陸","石川県","志賀町","まち整備課",null,"0767-32-9211"]
["近畿","福井県"]
["近畿","福井県","福井市","建設部 建築事務所 市営住宅課",{"$f":"HYPERLINK($H29,\"ホームページはこちら\")","v":"ホームページはこちら"},"0776-20-5570",null,"https://www.city.fukui.lg.jp/kurasi/jutaku/sieijjutaku/noto_itijisiyou.html"]
["近畿","福井県","永平寺町","永平寺町建設課",null,"0776-61-3948",null,"https://www.city.tsuruga.lg.jp/kurashi/kensetsu_jutaku/oshirase/notoukeire.html"]

{"sheet":"中部","index":4,"n_rows":65,"n_cols":10,"rows_kept":65,"cut":false,"hidden":false,"merged":[[40,1,40,6],[50,1,50,6],[5,1,5,6],[23,1,23,6],[1,1,1,6],[2,5,2,6],[3,5,3,6]]}
[null,null,null,null,null,null,null,null,null,{"$f":"SUBTOTAL(103,C6:C65)","v":56}]
[null,"令和６年能登半島地震で被災された方の申込みを受け付けている\n公営住宅等の問合せ先一覧【中部】"]
[null,null,null,null,null,"※令和７年５月３０日時点"]
[null,null,null,null,null,"※確認中のため空欄の箇所あり"]
[null,"都道府県","事業主体","担当部署","ホームページＵＲＬ","電話番号","オンライン受付","ホームページＵＲＬ","オンライン受付"]
["中部","岐阜県"]
["中部","岐阜県","岐阜県","都市建築部住宅課",{"$f":"HYPERLINK($H7,\"ホームページはこちら\")","v":"ホームページはこちら"},"058-272-8692",null,"https://www.pref.gifu.lg.jp/page/338867.html"]
["中部","岐阜県","岐阜市","まちづくり推進部住宅課","ホームページはこちら","058-265-3902",null,"https://www.city.gifu.lg.jp/kurashi/sumai/1002425/1024540.html"]
["中部","岐阜県","大垣市","都市計画部住宅課","ホームページはこちら","0584-47-8184",null,"https://www.city.ogaki.lg.jp/0000030790.html"]
["中部","岐阜県","高山市","総合政策部 地域政策課","ホームページはこちら","0577-35-3183",null,"https://www.city.takayama.lg.jp/shisei/1019087/index.html"]
["中部","岐阜県","多治見市","建設部　建築住宅課","ホームページはこちら","0572-22-1312",null,"https://www.city.tajimi.lg.jp/kurashi/jutaku/20240110.html"]
["中部","岐阜県","中津川市","リニア都市政策部都市住宅課","ホームページはこちら","0573-66-1111",null,"https://www.city.nakatsugawa.lg.jp/life/life/3/26091.html"]
["中部","岐阜県","美濃加茂市","都市政策部都市計画課",null,"0574-25-2111",null,"https://www.city.mino.gifu.jp/docs/1287630.html"]
["中部","岐阜県","土岐市","市民生活部生活環境課",{"$f":"HYPERLINK($H14,\"ホームページはこちら\")","v":"ホームページはこちら"},"0572-54-1111(内線167)"]
["中部","岐阜県","各務原市","都市建設部　建築指導課　住宅係",null,"058-383-7218",null,"https://www.city.toki.lg.jp/kurashi/sumai/1004714/1008308.html"]
["中部","岐阜県","山県市","山県市建設課",null,"0581-22-6832"]
["中部","岐阜県","瑞穂市","都市整備部　都市管理課",{"$f":"HYPERLINK($H17,\"ホームページはこちら\")","v":"ホームページはこちら"},"058-327-2102"]
["中部","岐阜県","海津市","建設水道部住宅都市計画課",null,"0584-53-3485",null,"https://www.city.mizuho.lg.jp/13041.htm"]
["中部","岐阜県","養老町","産業建設部　建設課　改良住宅対策室",{"$f":"HYPERLINK($H19,\"ホームページはこちら\")","v":"ホームページはこちら"},"0584-32-5079",null,"https://www.city.gujo.gifu.jp/pages/noto.html"]
["中部","岐阜県","垂井町","建設課",null,"0584-22-1151"]
["中部","岐阜県","揖斐川町","産業建設部建設課",{"$f":"HYPERLINK($H21,\"ホームページはこちら\")","v":"ホームページはこちら"},"0585-22-2111",null,"https://www.town.yoro.gifu.jp/docs/2024010900028/"]
["中部","岐阜県","大野町","産業建設部建設課",null,"0585-34-1111"]
["中部","岐阜県","八百津町","建設課　管理係",{"$f":"HYPERLINK($H23,\"ホームページはこちら\")","v":"ホームページはこちら"},"0574-43-2111",null,"https://www.town.ibigawa.lg.jp/0000011764.html"]
["中部","静岡県"]
["中部","静岡県","静岡県","くらし･環境部建築住宅局公営住宅課",{"$f":"HYPERLINK($H25,\"ホームページはこちら\")","v":"ホームページはこちら"},"054-221-3085",null,"https://www.pref.shizuoka.jp/bosaikinkyu/saigai/1056492/r60101eq.html"]
["中部","静岡県","静岡市","都市局建築部住宅政策課",{"$f":"HYPERLINK($H26,\"ホームページはこちら\")","v":"ホームページはこちら"},"054-221-1132",null,"https://www.city.shizuoka.lg.jp/412_000114.html"]
["中部","静岡県","浜松市","都市整備部　住宅課",{"$f":"HYPERLINK($H27,\"ホームページはこちら\")","v":"ホームページはこちら"},"053-457-2455",null,"https://www.city.hamamatsu.shizuoka.jp/jutaku/noto.html"]
["中部","静岡県","沼津市","沼津市住宅営繕課",null,"055-934-4792"]
["中部","静岡県","三島市","住宅政策課三島住まい推進室","ホームページはこちら","055-983-2639",null,"https://www.city.mishima.shizuoka.jp/ipn056185.html"]
["中部","静岡県","富士宮市","都市整備部建築住宅課",null,"0544-22-1163"]
["中部","静岡県","島田市","都市基盤部　建築住宅課",null,"0547-36-7193"]
["中部","静岡県","富士市","都市整備部　住宅政策課",{"$f":"HYPERLINK($H32,\"ホームページはこちら\")","v":"ホームページはこちら"},"0545-55-2843"]
["中部","静岡県","磐田市","建築住宅課",{"$f":"HYPERLINK($H33,\"ホームページはこちら\")","v":"ホームページはこちら"},"0538-37-4851",null,"https://www.city.fuji.shizuoka.jp/kurashi/c0304/rn2ola000002jrx5.html"]
["中部","静岡県","焼津市","建築住宅課",null,"054-626-2163",null,"https://www.city.iwata.shizuoka.jp/bousai_anzen/1013040/1013041.html"]
["中部","静岡県","掛川市","都市建築課　建築営繕部",null,"0537-21-1152"]
["中部","静岡県","藤枝市","都市建設部建築住宅課",null,"054-643-3481"]
["中部","静岡県","袋井市","都市計画課",null,"0538-44-3123"]
["中部","静岡県","下田市","建設課",null,"0558-22-2219"]
["中部","静岡県","裾野市","建設部都市計画課",{"$f":"HYPERLINK($H39,\"ホームページはこちら\")","v":"ホームページはこちら"},"055-995-1856",null,"https://www.city.fukuroi.shizuoka.jp/juyo/12286.html"]
["中部","静岡県","森町","定住推進課",{"$f":"HYPERLINK($H40,\"ホームページはこちら\")","v":"ホームページはこちら"},"0538-85-6321"]
["中部","愛知県"]
["中部","愛知県","一宮市","建築部住宅政策課",{"$f":"HYPERLINK($H42,\"ホームページはこちら\")","v":"ホームページはこちら"},"0586-85-7011",null,"https://www.city.okazaki.lg.jp/1550/1568/1646/p039985.html"]
["中部","愛知県","半田市","建設部建築課住宅担当","ホームページはこちら","0569-84-0670",null,"https://www.city.ichinomiya.aichi.jp/kenchiku/juutakuseisaku/1044032/1000397/1059527.html"]
["中部","愛知県","蒲郡市","建築住宅課","ホームページはこちら","0533-66-1132",null,"https://www.city.handa.lg.jp/shisei/koho/1004056/1004057/1004058/1006289/1006300.html"]
["中部","愛知県","小牧市","建設部建築課","ホームページはこちら","0568-76-1143",null,"https://www.city.toyokawa.lg.jp/shisei/soshiki/kakubukakuka/kensetsubu/notojishin.html"]
["中部","愛知県","稲沢市","まちづくり部建築課","ホームページはこちら","0587-32-1418",null,"https://www.city.gamagori.lg.jp/site/kenchiku/siei-saigainyukyo.html"]
["中部","愛知県","新城市","建設部 都市計画課",null,"0536-23-7640",null,"https://www.city.komaki.aichi.jp/admin/soshiki/kensetsubu/kenchiku/5/2_1/43861.html"]
["中部","愛知県","大府市","都市整備部建設総務課",{"$f":"HYPERLINK($H48,\"ホームページはこちら\")","v":"ホームページはこちら"},"0562-85-3896",null,"https://www.city.inazawa.aichi.jp/0000003470.html"]
["中部","愛知県","知多市","都市整備部都市計画課","ホームページはこちら","0562-36-2669"]
["中部","愛知県","田原市","都市建設部建築課住宅管理係","ホームページはこちら","0531-23-3527",null,"https://www.city.obu.aichi.jp/kurashi/sumai/shieijyutaku/1030183.html"]
["中部","三重県"]
["中部","三重県","三重県","県土整備部住宅政策課公営住宅班",{"$f":"HYPERLINK($H52,\"ホームページはこちら\")","v":"ホームページはこちら"},"059-224-2703",null,"https://www.pref.mie.lg.jp/TOPICS/m0037300212.htm"]
["中部","三重県","津市","建設部市営住宅課","ホームページはこちら","059-229-3190",null,"https://www.info.city.tsu.mie.jp/www/contents/1704780828137/index.html"]
["中部","三重県","伊勢市","都市整備部住宅政策課","ホームページはこちら","0596-21-5596",null,"https://www.city.ise.mie.jp/bousai_kyukyu/saigai_shien/1016685/1016724.html"]
["中部","三重県","松阪市","松阪市役所建設部住宅課","ホームページはこちら","0598-53-4163",null,"https://www.city.matsusaka.mie.jp/soshiki/43/noto.html"]
["中部","三重県","桑名市","都市整備部都市管理課","ホームページはこちら","0594-24-1220",null,"https://www.city.kuwana.lg.jp/hisyokoho/anzen/notohantoujisin.html\n"]
["中部","三重県","鈴鹿市","都市整備部住宅政策課","ホームページはこちら","059-382-7616",null,"https://www.city.suzuka.lg.jp/kurashi/sumai/1002589/1011479.html     "]
["中部","三重県","名張市","都市整備部　営繕住宅室","ホームページはこちら","0595-63-7740",null,"https://www.city.nabari.lg.jp/s043/030/080/320/201502053582.html"]
["中部","三重県","亀山市","亀山市建設部建築住宅課住まい推進グループ","ホームページはこちら","0595-84-5038",null,"https://www.city.kameyama.mie.jp/docs/2015031800015/"]
["中部","三重県","鳥羽市","建設課管理係","ホームページはこちら","0599-25-1171",null,"https://www.city.toba.mie.jp/soshiki/kanri/gyomu/sumai/shiei_jutaku/7298.html"]
["中部","三重県","志摩市","建設部　都市計画課",null,"0599-44-0305"]
["中部","三重県","伊賀市","建設部住宅課",{"$f":"HYPERLINK($H62,\"ホームページはこちら\")","v":"ホームページはこちら"},"0595-22-9737"]
["中部","三重県","玉城町","建設課",null,"0596-58-8205",null,"https://www.city.iga.lg.jp/0000003000.html"]
["中部","三重県","大紀町","大紀町建設課",null,"0598-86-2247"]
["中部","三重県","紀北町","建設課",null,"0597-46-3120"]

{"sheet":"近畿","index":5,"n_rows":76,"n_cols":10,"rows_kept":76,"cut":false,"hidden":false,"merged":[[55,1,55,6],[25,1,25,6],[42,1,42,6],[1,1,1,6],[2,5,2,6],[3,5,3,6],[5,1,5,6],[13,1,13,6]]}
[null,null,null,null,null,null,null,null,null,{"$f":"SUBTOTAL(103,C6:C76)","v":66}]
[null,"令和６年能登半島地震で被災された方の申込みを受け付けている\n公営住宅等の問合せ先一覧【近畿】"]
[null,null,null,null,null,"※令和７年５月３０日時点"]
[null,null,null,null,null,"※確認中のため空欄の箇所あり"]
[null,"都道府県","事業主体","担当部署","ホームページＵＲＬ","電話番号","オンライン受付","ホームページＵＲＬ","オンライン受付"]
["近畿","滋賀県"]
["近畿","滋賀県","滋賀県","住宅課公営住宅係",{"$f":"HYPERLINK($H7,\"ホームページはこちら\")","v":"ホームページはこちら"},"077-528-4234",null,"https://www.pref.shiga.lg.jp/ippan/kendoseibi/zyuutaku/335656.html"]
["近畿","滋賀県","大津市","住宅政策課","ホームページはこちら","077-528-2786",null,"https://www.city.otsu.lg.jp/soshiki/035/1810/g/shiei/59847.html "]
["近畿","滋賀県","長浜市","都市建設部住宅課",null,"0749-65-6533",null,"https://www.city.hikone.lg.jp/kakuka/toshi_seisaku/4/2_2/3/2982.html"]
["近畿","滋賀県","近江八幡市","都市整備部　市営住宅課",null,"0748-36-5511"]
["近畿","滋賀県","守山市","建設部　建築課",null,"077-582-1139"]
["近畿","滋賀県","栗東市","都市整備部住宅課",{"$f":"HYPERLINK($H12,\"ホームページはこちら\")","v":"ホームページはこちら"},"077-551-0347"]
["近畿","滋賀県","湖南市","都市建設部住宅課",null,"０７４８—７１—２３４９",null,"https://www.city.ritto.lg.jp/soshiki/kensetsu/jutaku/oshirase/14420.html"]
["近畿","京都府"]
["近畿","京都府","舞鶴市","住宅課",null,"0773-66-1050"]
["近畿","京都府","綾部市","建設部建築課",{"$f":"HYPERLINK($H16,\"ホームページはこちら\")","v":"ホームページはこちら"},"0773-42-4284",null,"https://www.city.ayabe.lg.jp"]
["近畿","京都府","向日市","都市整備部公共建物整備課",null,"075-874-2869"]
["近畿","京都府","八幡市","八幡市役所建設産業部住宅管理課","ホームページはこちら","075-983-5767",null,"https://www.city.yawata.kyoto.jp/"]
["近畿","京都府","京田辺市","建設部　開発指導課","ホームページはこちら","０７７４－６４－１３４１",null,"https://www.city.kyotanabe.lg.jp/0000020202.html"]
["近畿","京都府","京丹後市","建設部  都市計画・建築住宅課","ホームページはこちら","0772-69-0530",null,"https://www.city.kyotango.lg.jp/top/soshiki/kensetsu/toshikeikaku/5/1/index.html"]
["近畿","京都府","南丹市","土木建築部　営繕課","ホームページはこちら","0771-68-0062",null,"https://www.city.nantan.kyoto.jp/www/life/113/003/index.html"]
["近畿","京都府","木津川市","建設部　施設整備課","ホームページはこちら","0774-79-0553",null,"https://www.city.kizugawa.lg.jp/index.cfm/6,60817,24,123,html"]
[null,"京都府","井手町","同和・人権政策課",null,"0774-82-3380"]
["近畿","京都府","伊根町","地域整備課","ホームページはこちら","0772-32-1000",null,"https://www.town.kyotamba.kyoto.jp/kakukakarasagasu/dobokukenchikuka/gyomuannai/4/1/2628.html"]
["近畿","京都府","与謝野町","建設課","ホームページはこちら","0772-43-9014",null,"https://www.town.ine.kyoto.jp/soshiki/chiikiseibi/1/1/320.html"]
["近畿","兵庫県"]
["近畿","兵庫県","兵庫県","公営住宅管理課",{"$f":"HYPERLINK($H27,\"ホームページはこちら\")","v":"ホームページはこちら"},"078-230-8459",null,"https://web.pref.hyogo.lg.jp/kk37/20240104jisin_jyutaku.html"]
["近畿","兵庫県","洲本市","都市整備部　都市計画課",null,"0799-22-3321",null,"https://www.city.kobe.lg.jp/a28775/782899331324.html"]
["近畿","兵庫県","相生市","建設農林部 都市整備課 都市政策係",null,"0791-23-7135",null,"https://www.city.amagasaki.hyogo.jp/kurashi/bosai_syobo/1036339/1036345.html"]
["近畿","兵庫県","加古川市","住宅政策課",null,"079-427-9254"]
["近畿","兵庫県","赤穂市","市民部市民課住宅係",{"$f":"HYPERLINK($H31,\"ホームページはこちら\")","v":"ホームページはこちら"},"0791-43-7066"]
["近畿","兵庫県","三木市","都市整備部　建築住宅課",null,"0794-82-2000",null,"https://www.city.ashiya.lg.jp/douro/notojishin/notojishin-jutakubosyu.html"]
["近畿","兵庫県","高砂市","都市創造部土木総務課",{"$f":"HYPERLINK($H33,\"ホームページはこちら\")","v":"ホームページはこちら"},"079-443-9040"]
["近畿","兵庫県","丹波篠山市","まちづくり部地域計画課","ホームページはこちら","079-552-1118"]
["近畿","兵庫県","南あわじ市","産業建設部　都市政策室","ホームページはこちら","0799-43-5227",null,"https://www.city.ako.lg.jp/shimin/juutaku/noto_earthquake.html"]
["近畿","兵庫県","朝来市","都市整備部都市政策課","ホームページはこちら","079-672-6127"]
["近畿","兵庫県","たつの市","都市政策部建築住宅課",null,"0791-64-3163"]
["近畿","兵庫県","多可町","定住推進課",null,"0795-32-4776",null,"https://www.city.takasago.lg.jp/gyoseisite/100/9928.html"]
["近畿","兵庫県","稲美町","土木課",{"$f":"HYPERLINK($H39,\"ホームページはこちら\")","v":"ホームページはこちら"},"079-492-9142"]
["近畿","兵庫県","上郡町","建設課",null,"0791-52-1117",null,"https://www.city.tambasasayama.lg.jp/soshikikarasagasu/chiikikeikakuka/kurashi_tetsuzuki/1/25844.html"]
["近畿","兵庫県","佐用町","商工観光課定住・空家対策室",null,"0790-82-0670",null,"https://www.city.yabu.hyogo.jp/info1/11225.html"]
["近畿","兵庫県","香美町","建設課",{"$f":"HYPERLINK($H42,\"ホームページはこちら\")","v":"ホームページはこちら"},"0796-36-1961"]
["近畿","奈良県"]
["近畿","奈良県","大和高田市","環境建設部　住宅課　住宅グループ（公営住宅担当）",null,"0745-22-1101（代表）"]
["近畿","奈良県","天理市","建築課",{"$f":"HYPERLINK($H45,\"ホームページはこちら\")","v":"ホームページはこちら"},"0743-63-1001",null,"https://www.city.tenri.nara.jp/kakuka/kurasibunkabu/bousaianzenka/r6_notohantou_jishin/13378.html"]
["近畿","奈良県","生駒市","建設部営繕課",{"$f":"HYPERLINK($H46,\"ホームページはこちら\")","v":"ホームページはこちら"},"0743-74-1111内線2610",null,"https://www.city.gojo.lg.jp/soshiki/kenchikujutaku/juutaku/14893.html"]
["近畿","奈良県","三郷町","住環境政策課",null,"0745-43-7342",null,"https://www.city.ikoma.lg.jp/topics/topics_list.php"]
["近畿","奈良県","川西町","まちマネジメント課",null,"0745-44-2679"]
["近畿","奈良県","田原本町","産業建設部まちづくり建設課",null,"0744-32-2901"]
["近畿","奈良県","曽爾村","地域建設課",null,"０７４５－９４－２１０５"]
["近畿","奈良県","王寺町","建設課",{"$f":"HYPERLINK($H51,\"ホームページはこちら\")","v":"ホームページはこちら"},"0745-73-2001"]
["近畿","奈良県","吉野町","町民税務課",null,"0746-32-3081",null,"https://www.town.oji.nara.jp/important_news/9609.html"]
["近畿","奈良県","大淀町","人権施策推進室",null,"0747-52-5542"]
["近畿","奈良県","下市町","建設課",null,"0747-52-0001"]
["近畿","奈良県","十津川村","施設課",{"$f":"HYPERLINK($H55,\"ホームページはこちら\")","v":"ホームページはこちら"},"0746-62-0905"]
["近畿","和歌山県"]
["近畿","和歌山県","和歌山県","建築住宅課",{"$f":"HYPERLINK($H57,\"ホームページはこちら\")","v":"ホームページはこちら"},"073-441-3212",null,"https://www.pref.wakayama.lg.jp/prefg/080800/d00215491.html"]
["近畿","和歌山県","和歌山市","都市建設局建築住宅部住宅第１課","ホームページはこちら","073-435-1098",null,"http://www.city.wakayama.wakayama.jp/kurashi/sumai_jyougesuidou/1055712.html"]
["近畿","和歌山県","海南市","管理課　住宅班","ホームページはこちら","073-483-8488",null,"https://www.city.kainan.lg.jp/kakubusho/machizukuribu/kanrika/oshirase/5517.html"]
["近畿","和歌山県","橋本市","建築住宅課","ホームページはこちら","0736-33-1115",null,"https://www.city.hashimoto.lg.jp/guide/kensetsubu/kentikujutaku/shieijuutaku/ichizinyukyo.html"]
["近畿","和歌山県","御坊市","産業建設部　住宅対策課",null,"0738-23-5521"]
["近畿","和歌山県","田辺市","建設部建築課市営住宅係",null,"0739-26-9936"]
["近畿","和歌山県","新宮市","建設農林部　管理課",null,"0735-23-3354"]
["近畿","和歌山県","紀の川市","建設部住宅政策課　",null,"0736-77-2511"]
["近畿","和歌山県","紀美野町","企画管財課",{"$f":"HYPERLINK($H65,\"ホームページはこちら\")","v":"ホームページはこちら"},"073-489-5913",null,"https://www.town.kimino.wakayama.jp/sagasu/kensetsuka/3664.html"]
["近畿","和歌山県","かつらぎ町","管財情報課",null,"0736-22-0300"]
["近畿","和歌山県","高野町","建設課",null,"0736-56-2934"]
["近畿","和歌山県","有田川町","建設課",null,"0737-22-3281"]
["近畿","和歌山県","みなべ町","建設課",null,"0739-33-9370"]
["近畿","和歌山県","日高川町","住民課",null,"0738-22-1701"]
["近畿","和歌山県","白浜町","建設課",null,"0739-43-6589"]
["近畿","和歌山県","上富田町","建設課",null,"0739-34-2374"]
["近畿","和歌山県","すさみ町","総務課",null,"0739-55-4802"]
["近畿","和歌山県","那智勝浦町","建設課",null,"0735-52-0560"]
["近畿","和歌山県","古座川町","総務課",null,"0735-72-0180"]
["近畿","和歌山県","串本町","総務課",null,"0735-62-0555"]

{"sheet":"中国","index":6,"n_rows":65,"n_cols":10,"rows_kept":65,"cut":false,"hidden":false,"merged":[[1,1,1,6],[2,5,2,6],[3,5,3,6],[48,1,48,6],[5,1,5,6],[12,1,12,6],[24,1,24,6],[42,1,42,6]]}
[null,null,null,null,null,null,null,null,null,{"$f":"SUBTOTAL(103,C6:C65)","v":55}]
[null,"令和６年能登半島地震で被災された方の申込みを受け付けている\n公営住宅等の問合せ先一覧【中国】"]
[null,null,null,null,null,"※令和７年５月３０日時点"]
[null,null,null,null,null,"※確認中のため空欄の箇所あり"]
[null,"都道府県","事業主体","担当部署","ホームページＵＲＬ","電話番号","オンライン受付","ホームページＵＲＬ","オンライン受付"]
["中国","鳥取県"]
["中国","鳥取県","鳥取県","人口減少社会対策課",{"$f":"HYPERLINK($H7,\"ホームページはこちら\")","v":"ホームページはこちら"},"0857-26-7900",null,"https://www.pref.tottori.lg.jp/315512.htm"]
["中国","鳥取県","鳥取市","都市整備部建築住宅課",null,"0857-30-8371"]
["中国","鳥取県","米子市","都市整備部　住宅政策課",null,"0859-23-5263"]
["中国","鳥取県","八頭町","建設課",null,"0859-66-3115",null,"https://www1.town.chizu.tottori.jp/chizu/soumu/bousai/p660/?preview&edit_off"]
["中国","鳥取県","琴浦町","建設住宅課",null,"0858-55-7805"]
["中国","鳥取県","大山町","建設課",null,"0859-53-3186"]
["中国","島根県"]
["中国","島根県","出雲市","出雲市都市建設部建築住宅課",{"$f":"HYPERLINK($H14,\"ホームページはこちら\")","v":"ホームページはこちら"},"0853-21-6150",null,"https://www.pref.shimane.lg.jp/infra/build/jutaku/kenei_jutaku/reiwa5nen7gatugouu.html"]
["中国","島根県","益田市","建設部建築課",{"$f":"HYPERLINK($H15,\"ホームページはこちら\")","v":"ホームページはこちら"},"0856-31-0382",null,"https://www.city.matsue.lg.jp/soshikikarasagasu/tosiseibibu_jutakuseisakuka/sumai/17791.html"]
["中国","島根県","大田市","建設部都市計画課",null,"0854-83-8110",null,"https://www.city.hamada.shimane.jp/www/contents/1706051463636/index.html"]
["中国","島根県","江津市","都市計画課",null,"0855-52-7951",null,"https://www.city.izumo.shimane.jp/www/contents/1704419903591/index.html"]
["中国","島根県","奥出雲町","町民課",null,"0854-54-2510",null,"https://www.city.masuda.lg.jp/soshikikarasagasu/kensetsubu/kenchikuka/7/9231.html"]
["中国","島根県","飯南町","建設課",null,"0854-76-3942"]
["中国","島根県","川本町","町民生活課",null,"0855-72-0632",null,"https://www.city.yasugi.shimane.jp/kurashi/sumai/shiei/kouei_teikyou.html\n\n"]
["中国","島根県","邑南町"]
["中国","島根県","津和野町",null,null,null,null,"https://www.city.unnan.shimane.jp/unnan/kurashi/sumai/juutaku/reiwa6nen_notohantoujishin_koueijyuutaku.html"]
["中国","島根県","吉賀町","税務住民課",null,"0856-77-1113"]
["中国","島根県","隠岐の島町","建設課　管理住宅係",null,"08512-2-8564"]
["中国","岡山県"]
["中国","岡山県","岡山県","土木部都市局住宅課",{"$f":"HYPERLINK($H26,\"ホームページはこちら\")","v":"ホームページはこちら"},"086-226-7867",null,"https://www.pref.okayama.jp/page/894741.html"]
["中国","岡山県","岡山市","都市整備局住宅・建築部住宅課",{"$f":"HYPERLINK($H27,\"ホームページはこちら\")","v":"ホームページはこちら"},"086-803-1471",null,"https://www.city.okayama.jp/kurashi/0000056028.html"]
["中国","岡山県","倉敷市","建築部住宅課","ホームページはこちら","086-426-3531",null,"https://www.city.kurashiki.okayama.jp/41226.htm"]
["中国","岡山県","津山市","都市建設部管理課住宅係",{"$f":"HYPERLINK($H29,\"ホームページはこちら\")","v":"ホームページはこちら"},"0868-32-2090",null,"https://www.city.tsuyama.lg.jp/life/index2.php?id=10011"]
["中国","岡山県","玉野市","建設部都市計画課",{"$f":"HYPERLINK($H30,\"ホームページはこちら\")","v":"ホームページはこちら"},"0863-32-5544",null,"https://www.city.tamano.lg.jp/soshiki/20/38638.html"]
["中国","岡山県","笠岡市","建設部 都市計画課 公営住宅係",null,"0865-69-2140"]
["中国","岡山県","総社市","建設部建築住宅課",{"$f":"HYPERLINK($H32,\"ホームページはこちら\")","v":"ホームページはこちら"},"0866-92-8287",null,"https://www.city.soja.okayama.jp/kenchikujyuutaku/kurashi/notohanntou_juutakushien.html"]
["中国","岡山県","備前市","産業部土地住宅政策課",null,"0869-64-1851",null,"https://www.city.takahashi.lg.jp/soshiki/11/notohanntou.html"]
["中国","岡山県","瀬戸内市","産業建設部建築住宅課",null,"0869-22-2649"]
["中国","岡山県","赤磐市","建設事業部建設課",null,"086-955-1485"]
["中国","岡山県","真庭市","建設部都市住宅課",{"$f":"HYPERLINK($H36,\"ホームページはこちら\")","v":"ホームページはこちら"},"0867-42-7781"]
["中国","岡山県","美作市","都市整備部都市住宅課",null,"0868-72-6697"]
["中国","岡山県","浅口市","産業建設部建設業務課",null,"0865-44-9014",null,"https://www.city.maniwa.lg.jp/soshiki/44/81929.html"]
["中国","岡山県","矢掛町","建設課",null,"0866-82-1014"]
["中国","岡山県","鏡野町","建設課",null,"0868-54-2989"]
["中国","岡山県","久米南町","税務住民課",null,"086-728-2115"]
["中国","岡山県","吉備中央町","①建設課\n②社会福祉協議会",null,"①0866-54-1319\n②0866-54-1818"]
["中国","広島県"]
["中国","広島県","呉市","住宅政策課",{"$f":"HYPERLINK($H44,\"ホームページはこちら\")","v":"ホームページはこちら"},"0823-25-3392",null,"https://www.city.kure.lg.jp/soshiki/46/hisaisyajyutaku.html"]
["中国","広島県","竹原市","建設部都市整備課","ホームページはこちら","0846-22-7749",null,"https://www.city.takehara.lg.jp/kurashi_tetsuzuki/sumai/shieijutaku_kosodatejutaku/shiei/7101.html"]
["中国","広島県","東広島市","都市部住宅課","ホームページはこちら","082-420-0946"]
["中国","広島県","廿日市市","建設部住宅政策課","ホームページはこちら","0829-30-9177",null,"https://www.city.otake.hiroshima.jp/soshiki/kensetsu/toshikeikaku/gyomu/1/6411.html"]
["中国","広島県","大崎上島町","建設課",null,"0846-65-3124",null,"https://www.city.higashihiroshima.lg.jp/soshiki/toshi/4_1/3/38500.html"]
["中国","山口県"]
["中国","山口県","山口県","土木建築部住宅課　県営住宅管理班",{"$f":"HYPERLINK($H50,\"ホームページはこちら\")","v":"ホームページはこちら"},"083-933-3880",null,"https://www.pref.yamaguchi.lg.jp/soshiki/135/24224.html"]
["中国","山口県","下関市","住宅政策課",{"$f":"HYPERLINK($H51,\"ホームページはこちら\")","v":"ホームページはこちら"},"083-231-4101",null,"https://www.city.shimonoseki.lg.jp/site/shien-noto/105646.html"]
["中国","山口県","宇部市","住宅政策課",null,"0836-34-8427",null,"https://www.city.ube.yamaguchi.jp/shisei/kouhou/kishahappyou/1008059/1020927/1021307.html"]
["中国","山口県","山口市","山口市都市整備部建築課",{"$f":"HYPERLINK($H53,\"ホームページはこちら\")","v":"ホームページはこちら"},"083-934-2843",null,"https://www.city.yamaguchi.lg.jp/soshiki/83/113867.html"]
["中国","山口県","防府市","土木都市建設部建築課",null,"0835-25-2178"]
["中国","山口県","下松市","住宅建築課住宅係",null,"0833-45-1851"]
["中国","山口県","岩国市","都市開発部建築住宅課",null,"0827-29-5139"]
["中国","山口県","光市","建築住宅課",null,"0833-72-1566"]
["中国","山口県","長門市","建築住宅課",null,"0837-23-1186"]
["中国","山口県","柳井市","建築住宅課",{"$f":"HYPERLINK($H59,\"ホームページはこちら\")","v":"ホームページはこちら"},"0820-22-2111 内線242･243"]
["中国","山口県","周南市","建設部住宅課市営住宅担当",{"$f":"HYPERLINK($H60,\"ホームページはこちら\")","v":"ホームページはこちら"},"0834-22-8282",null,"https://www.city-yanai.jp/soshiki/12/notoshinsai-jutaku.html"]
["中国","山口県","山陽小野田市","建設部建築住宅課",null,"0836-82-1166",null,"https://www.city.shunan.lg.jp/soshiki/36/109974.html"]
["中国","山口県","周防大島町","産業建設環境部生活衛生課",null,"0820-79-1010"]
["中国","山口県","和木町","都市建設課",null,"0827-52-2197"]
["中国","山口県","田布施町"]
["中国","山口県","阿武町","土木建築課",null,"08388-2-3112"]

{"sheet":"四国","index":7,"n_rows":60,"n_cols":10,"rows_kept":60,"cut":false,"hidden":false,"merged":[[45,1,45,6],[5,1,5,6],[6,3,21,3],[6,4,21,4],[6,5,21,5],[6,6,21,6],[1,1,1,6],[2,5,2,6],[3,5,3,6],[22,1,22,6],[33,1,33,6]]}
[null,null,null,null,null,null,null,null,null,{"$f":"SUBTOTAL(103,C6:C60)","v":51}]
[null,"令和６年能登半島地震で被災された方の申込みを受け付けている\n公営住宅等の問合せ先一覧【四国】"]
[null,null,null,null,null,"※令和７年５月３０日時点"]
[null,null,null,null,null,"※確認中のため空欄の箇所あり"]
[null,"都道府県","事業主体","担当部署","ホームページＵＲＬ","電話番号","オンライン受付","ホームページＵＲＬ","オンライン受付"]
["四国","徳島県"]
["四国","徳島県","徳島県","徳島県　県土整備部住宅課\n※県を一元的な窓口とする",{"$f":"HYPERLINK($H7,\"ホームページはこちら\")","v":"ホームページはこちら"},"088-621-2590",null,"https://www.pref.tokushima.lg.jp/ippannokata/kurashi/kenchiku/7236601/"]
["四国","徳島県","徳島市",null,null,null,null,"https://www.pref.tokushima.lg.jp/ippannokata/kurashi/kenchiku/7236601/"]
["四国","徳島県","鳴門市",null,null,null,null,"https://www.pref.tokushima.lg.jp/ippannokata/kurashi/kenchiku/7236601/"]
["四国","徳島県","小松島市",null,null,null,null,"https://www.pref.tokushima.lg.jp/ippannokata/kurashi/kenchiku/7236601/"]
["四国","徳島県","阿南市",null,null,null,null,"https://www.pref.tokushima.lg.jp/ippannokata/kurashi/kenchiku/7236601/"]
["四国","徳島県","吉野川市",null,null,null,null,"https://www.pref.tokushima.lg.jp/ippannokata/kurashi/kenchiku/7236601/"]
["四国","徳島県","阿波市",null,null,null,null,"https://www.pref.tokushima.lg.jp/ippannokata/kurashi/kenchiku/7236601/"]
["四国","徳島県","三好市",null,null,null,null,"https://www.pref.tokushima.lg.jp/ippannokata/kurashi/kenchiku/7236601/"]
["四国","徳島県","上勝町",null,null,null,null,"https://www.pref.tokushima.lg.jp/ippannokata/kurashi/kenchiku/7236601/"]
["四国","徳島県","佐那河内村",null,null,null,null,"https://www.pref.tokushima.lg.jp/ippannokata/kurashi/kenchiku/7236601/"]
["四国","徳島県","石井町",null,null,null,null,"https://www.pref.tokushima.lg.jp/ippannokata/kurashi/kenchiku/7236601/"]
["四国","徳島県","那賀町",null,null,null,null,"https://www.pref.tokushima.lg.jp/ippannokata/kurashi/kenchiku/7236601/"]
["四国","徳島県","牟岐町",null,null,null,null,"https://www.pref.tokushima.lg.jp/ippannokata/kurashi/kenchiku/7236601/"]
["四国","徳島県","美波町",null,null,null,null,"https://www.pref.tokushima.lg.jp/ippannokata/kurashi/kenchiku/7236601/"]
["四国","徳島県","松茂町",null,null,null,null,"https://www.pref.tokushima.lg.jp/ippannokata/kurashi/kenchiku/7236601/"]
["四国","徳島県","板野町",null,null,null,null,"https://www.pref.tokushima.lg.jp/ippannokata/kurashi/kenchiku/7236601/"]
["四国","香川県"]
["四国","香川県","香川県","土木部住宅課",{"$f":"HYPERLINK($H24,\"ホームページはこちら\")","v":"ホームページはこちら"},"087-832-3581",null,"https://www.pref.kagawa.lg.jp/jutaku/keneijutaku/notojisin.html"]
["四国","香川県","高松市","市営住宅課",{"$f":"HYPERLINK($H25,\"ホームページはこちら\")","v":"ホームページはこちら"},"087-839-2541",null,"https://www.city.takamatsu.kagawa.jp/kurashi/kurashi/sumai/koeijutaku/20240109.html"]
["四国","香川県","丸亀市","都市整備部　住宅課",{"$f":"HYPERLINK($H26,\"ホームページはこちら\")","v":"ホームページはこちら"},"0877-24-8814",null,"https://www.city.marugame.lg.jp/page/22507.html"]
["四国","香川県","坂出市","建設課（管理係）",{"$f":"HYPERLINK($H27,\"ホームページはこちら\")","v":"ホームページはこちら"},"0877-44-5011",null,"https://www.city.sakaide.lg.jp/soshiki/kensetu/0101notozyuutaku.html"]
["四国","香川県","観音寺市","都市整備課住宅係",null,"0875-23-3955"]
["四国","香川県","東かがわ市","事業部都市整備課",{"$f":"HYPERLINK($H29,\"ホームページはこちら\")","v":"ホームページはこちら"},"0879-26-1304",null,"https://www.higashikagawa.jp/kurashinojoho/sumai/shieijutaku/3863.html"]
["四国","香川県","三豊市","建設部建築住宅課",null,"0875-73-3044"]
["四国","香川県","小豆島町","住まい政策課",null,"0879-82-7011"]
["四国","香川県","綾川町","建設課",{"$f":"HYPERLINK($H32,\"ホームページはこちら\")","v":"ホームページはこちら"},"087-876-5280",null,"https://www.town.ayagawa.lg.jp/docs/2024032300189/"]
["四国","香川県","まんのう町","建設土地改良課",null,"0877-73-0107"]
["四国","愛媛県"]
["四国","愛媛県","愛媛県","保健福祉課",{"$f":"HYPERLINK($H35,\"ホームページはこちら\")","v":"ホームページはこちら"},"089-912-2257",null,"https://www.pref.ehime.jp/page/48936.html"]
["四国","愛媛県","松山市","住宅課",{"$f":"HYPERLINK($H36,\"ホームページはこちら\")","v":"ホームページはこちら"},"089-948-6498",null,"https://www.city.matsuyama.ehime.jp/kurashi/kurashi/jutaku/shieizyuutaku/jutaku_iji_shinsai2.html"]
["四国","愛媛県","今治市","建築住宅課",null,"0898-36-1566"]
["四国","愛媛県","八幡浜市","財政課",null,"0894-22-3111"]
["四国","愛媛県","西条市","施設管理課",null,"0897-52-1561"]
["四国","愛媛県","伊予市","都市整備課",null,"089-909-6361"]
["四国","愛媛県","西予市","建設課",null,"0894-62-6210"]
["四国","愛媛県","久万高原町","建設課",null,"0892-21-1111"]
["四国","愛媛県","砥部町","建設課",null,"089-962-6010"]
["四国","愛媛県","松野町","建設環境課",null,"0895-42-1115"]
["四国","愛媛県","鬼北町","建設課",null,"0895-45-1111"]
["四国","高知県"]
["四国","高知県","高知県","住宅課住宅管理担当",null,"088-823-9855"]
["四国","高知県","高知市","都市建設部住宅政策課",null,"088-823-9463"]
["四国","高知県","室戸市","財産管理課建築住宅班",null,"0887-22-5122"]
["四国","高知県","南国市","住宅課",null,"088-880-6558"]
["四国","高知県","須崎市","須崎市住宅・建築課",null,"0889-42-5692"]
["四国","高知県","宿毛市","都市建設課建築住宅係",null,"0880-62-1251"]
["四国","高知県","香南市","住宅政策課　市営住宅係",null,"0887-57-7536"]
["四国","高知県","馬路村","建設課",null,"0887-44-2336"]
["四国","高知県","仁淀川町","仁淀川町町民課",null,"0889-35-1088"]
["四国","高知県","中土佐町","総務課住宅係",null,"0889-52-2211"]
["四国","高知県","津野町","総務課",null,"0889-55-2311"]
["四国","高知県","四万十町","建設課",null,"0880-22-3120"]
["四国","高知県","大月町","総務課危機管理室",null,"0880-73-1140"]
["四国","高知県","黒潮町","情報防災課",null,"0880-43-2188"]

{"sheet":"九州・沖縄","index":8,"n_rows":120,"n_cols":10,"rows_kept":120,"cut":false,"hidden":false,"merged":[[89,1,89,6],[93,1,93,6],[116,1,116,6],[46,3,61,3],[46,4,61,4],[46,5,61,5],[46,6,61,6],[62,1,62,6],[71,1,71,6],[5,1,5,6],[39,1,39,6],[45,1,45,6],[1,1,1,6],[2,5,2,6],[3,5,3,6]]}
[null,null,null,null,null,null,null,null,null,{"$f":"SUBTOTAL(103,C6:C120)","v":107}]
[null,"令和６年能登半島地震で被災された方の申込みを受け付けている\n公営住宅等の問合せ先一覧【九州・沖縄】"]
[null,null,null,null,null,"※令和７年５月３０日時点"]
[null,null,null,null,null,"※確認中のため空欄の箇所あり"]
[null,"都道府県","事業主体","担当部署","ホームページＵＲＬ","電話番号","オンライン受付","ホームページＵＲＬ","オンライン受付"]
["九州","福岡県"]
["九州","福岡県","福岡県","建築都市部県営住宅課",{"$f":"HYPERLINK($H7,\"ホームページはこちら\")","v":"ホームページはこちら"},"092-643-3739",null,"https://www.pref.fukuoka.lg.jp/contents/notojutakushien.html"]
["九州","福岡県","北九州市","建築都市局住宅管理課",{"$f":"HYPERLINK($H8,\"ホームページはこちら\")","v":"ホームページはこちら"},"093-582-2556",null,"https://www.city.kitakyushu.lg.jp/contents/924_01581.html"]
["九州","福岡県","福岡市","住宅都市局住宅部住宅運営課",{"$f":"HYPERLINK($H9,\"ホームページはこちら\")","v":"ホームページはこちら"},"092-271-2553",null,"https://www.city.fukuoka.lg.jp/bousai/shien/R6noto/forvictim.html"]
["九州","福岡県","大牟田市","都市整備部建築住宅課",null,"0944-41-2787"]
["九州","福岡県","久留米市","都市建設部　市営住宅課",{"$f":"HYPERLINK($H11,\"ホームページはこちら\")","v":"ホームページはこちら"},"0942-30-9086",null,"https://www.city.kurume.fukuoka.jp/1050kurashi/2080juutaku/3010jyuutaku/2024-0111-1618-388.html"]
["九州","福岡県","直方市","産業建設部建築管理課住宅管理係",null,"0949-25-2262"]
["九州","福岡県","飯塚市","都市建設部住宅課",null,"0948-22-5513"]
["九州","福岡県","田川市","建設経済部　建築住宅課　住宅管理係",{"$f":"HYPERLINK($H14,\"ホームページはこちら\")","v":"ホームページはこちら"},"0947-85-7153",null,"https://www.joho.tagawa.fukuoka.jp/kiji00310161/index.html"]
["九州","福岡県","柳川市","建設部建設課住宅管理係",{"$f":"HYPERLINK($H15,\"ホームページはこちら\")","v":"ホームページはこちら"},"0944-77-8542",null,"https://www.city.yanagawa.fukuoka.jp/kurashi/jutaku/shieijutaku/6739.html"]
["九州","福岡県","八女市","企画部定住対策課住宅係",null,"0943-23-2577"]
["九州","福岡県","筑後市","都市対策課",{"$f":"HYPERLINK($H17,\"ホームページはこちら\")","v":"ホームページはこちら"},"0942-65-7029",null,"https://www.city.chikugo.lg.jp/shimin/_2299/_6043/_30105.html"]
["九州","福岡県","豊前市","都市住宅課住宅建築係",null,"0979-82-8098"]
["九州","福岡県","中間市","都市計画課住宅対策係",null,"093-246-6155"]
["九州","福岡県","小郡市","都市計画課",null,"0942-72-2111"]
["九州","福岡県","筑紫野市","総務部管財課",null,"092-923-1111"]
["九州","福岡県","春日市","総務部管財課",null,"092-584-1111"]
["九州","福岡県","古賀市","管財課　管財係",{"$f":"HYPERLINK($H23,\"ホームページはこちら\")","v":"ホームページはこちら"},"092-942-1168",null,"https://www.city.koga.fukuoka.jp/news/d/5573"]
["九州","福岡県","うきは市","建設課建設管理係",null,"0943-75-4987"]
["九州","福岡県","宮若市","建築都市課　住宅管理係",null,"0949-32-0955"]
["九州","福岡県","嘉麻市","住宅課住宅管理係",null,"0948-42-7062"]
["九州","福岡県","みやま市","都市計画課住宅政策係",{"$f":"HYPERLINK($H27,\"ホームページはこちら\")","v":"ホームページはこちら"},"0944-64-1540"]
["九州","福岡県","粕屋町","住民福祉部介護福祉課社会福祉係",{"$f":"HYPERLINK($H28,\"ホームページはこちら\")","v":"ホームページはこちら"},"092-938-0229",null,"https://www.city.miyama.lg.jp/s041/kurashi/080/040/050/20240124091222.html"]
["九州","福岡県","鞍手町","管財課契約管財係",null,"0949-42-2111",null,"https://www.town.kasuya.fukuoka.jp/s013/020/060/320/20240110130018.html"]
["九州","福岡県","桂川町","建設事業課管理鉱害係",null,"0948-65-3330"]
["九州","福岡県","筑前町","都市計画課　住宅政策係",null,"0946-42-6642"]
["九州","福岡県","大刀洗町","建設課管理係",{"$f":"HYPERLINK($H32,\"ホームページはこちら\")","v":"ホームページはこちら"},"0942-77-6204"]
["九州","福岡県","香春町","住宅水道課住宅管理係",null,"0947-32-8403"]
["九州","福岡県","添田町","住環境整備課",null,"0947-82-1235"]
["九州","福岡県","川崎町","住宅環境課　住宅管理係",null,"0947-72-3000",null,"https://www.town.tachiarai.fukuoka.jp/page/page_03518.html"]
["九州","福岡県","大任町","事業課住宅係",null,"0947-63-3001"]
["九州","福岡県","みやこ町","建築課　営繕係",null,"0930-32-6014"]
["九州","福岡県","吉富町","福祉保険課",null,"0979-24-1123"]
["九州","福岡県","上毛町","住民課",null,"0979-72-3116"]
["九州","佐賀県"]
["九州","佐賀県","佐賀県","県土整備部建築住宅課",{"$f":"HYPERLINK($H41,\"ホームページはこちら\")","v":"ホームページはこちら"},"0952-25-7368",null,"https://www.pref.saga.lg.jp/kiji003100634/index.html"]
["九州","佐賀県","鳥栖市","建設課",null,"0942-85-3600",null,"https://www.city.saga.lg.jp/main/95372.html"]
["九州","佐賀県","鹿島市","建設住宅課",null,"0954-63-3415"]
["九州","佐賀県","みやき町","建設課",null,"0942-96-5531"]
["九州","佐賀県","大町町","農林建設課",null,"0952-82-3151"]
["九州","長崎県"]
["九州","長崎県","長崎県","長崎県住宅課\n（県で窓口を一元化）",{"$f":"HYPERLINK($H47,\"ホームページはこちら\")","v":"ホームページはこちら"},"095-894-3101",null,"https://www.pref.nagasaki.jp/bunrui/kurashi-kankyo/sumai/keneijutaku-sumai/646073.html"]
["九州","長崎県","長崎市",null,null,null,null,"https://www.pref.nagasaki.jp/bunrui/kurashi-kankyo/sumai/keneijutaku-sumai/646073.html"]
["九州","長崎県","佐世保市",null,null,null,null,"https://www.pref.nagasaki.jp/bunrui/kurashi-kankyo/sumai/keneijutaku-sumai/646073.html"]
["九州","長崎県","島原市",null,null,null,null,"https://www.pref.nagasaki.jp/bunrui/kurashi-kankyo/sumai/keneijutaku-sumai/646073.html"]
["九州","長崎県","諫早市",null,null,null,null,"https://www.pref.nagasaki.jp/bunrui/kurashi-kankyo/sumai/keneijutaku-sumai/646073.html"]
["九州","長崎県","大村市",null,null,null,null,"https://www.pref.nagasaki.jp/bunrui/kurashi-kankyo/sumai/keneijutaku-sumai/646073.html"]
["九州","長崎県","平戸市",null,null,null,null,"https://www.pref.nagasaki.jp/bunrui/kurashi-kankyo/sumai/keneijutaku-sumai/646073.html"]
["九州","長崎県","松浦市",null,null,null,null,"https://www.pref.nagasaki.jp/bunrui/kurashi-kankyo/sumai/keneijutaku-sumai/646073.html"]
["九州","長崎県","壱岐市",null,null,null,null,"https://www.pref.nagasaki.jp/bunrui/kurashi-kankyo/sumai/keneijutaku-sumai/646073.html"]
["九州","長崎県","五島市",null,null,null,null,"https://www.pref.nagasaki.jp/bunrui/kurashi-kankyo/sumai/keneijutaku-sumai/646073.html"]
["九州","長崎県","雲仙市",null,null,null,null,"https://www.pref.nagasaki.jp/bunrui/kurashi-kankyo/sumai/keneijutaku-sumai/646073.html"]
["九州","長崎県","南島原市",null,null,null,null,"https://www.pref.nagasaki.jp/bunrui/kurashi-kankyo/sumai/keneijutaku-sumai/646073.html"]
["九州","長崎県","長与町",null,null,null,null,"https://www.pref.nagasaki.jp/bunrui/kurashi-kankyo/sumai/keneijutaku-sumai/646073.html"]
["九州","長崎県","東彼杵町",null,null,null,null,"https://www.pref.nagasaki.jp/bunrui/kurashi-kankyo/sumai/keneijutaku-sumai/646073.html"]
["九州","長崎県","川棚町",null,null,null,null,"https://www.pref.nagasaki.jp/bunrui/kurashi-kankyo/sumai/keneijutaku-sumai/646073.html"]
["九州","長崎県","小値賀町",null,null,null,null,"https://www.pref.nagasaki.jp/bunrui/kurashi-kankyo/sumai/keneijutaku-sumai/646073.html"]
["九州","熊本県"]
["九州","熊本県","熊本県","熊本県土木部建築住宅局住宅課",{"$f":"HYPERLINK($H64,\"ホームページはこちら\")","v":"ホームページはこちら"},"096-333-2550",null,"https://www.pref.kumamoto.jp/soshiki/117/193582.html"]
["九州","熊本県","熊本市","市営住宅課",{"$f":"HYPERLINK($H65,\"ホームページはこちら\")","v":"ホームページはこちら"},"096-328-2461",{"$f":"HYPERLINK($I65,\"○\")","v":"○"},"https://www.city.kumamoto.jp/hpKiji/pub/detail.aspx?c_id=5&id=52788&class_set_id=2&class_id=211","https://apply.e-tumo.jp/city-kumamoto-u/offer/offerList_detail?tempSeq=13582"]
["九州","熊本県","玉名市","建設部住宅課市営住宅係",null,"0968-75-1311"]
["九州","熊本県","菊池市","菊池市営住宅管理センター",null,"0968-41-8160"]
["九州","熊本県","阿蘇市","土木部住環境課",null,"0967-22-3111"]
["九州","熊本県","天草市","建設総務課　市営住宅係",null,"0969-32-6794"]
["九州","熊本県","高森町","生活環境課住宅管財係",null,"0967-62-2912"]
["九州","熊本県","苓北町","土木管理課",null,"0969-35-3331"]
["九州","大分県"]
["九州","大分県","大分県","土木建築部公営住宅室",{"$f":"HYPERLINK($H73,\"ホームページはこちら\")","v":"ホームページはこちら"},"097-506-4684",null,"https://www.pref.oita.jp/soshiki/18510/mokutekigainyukyo-notohantoujishin.html"]
["九州","大分県","大分市","大分市土木建築部住宅課",{"$f":"HYPERLINK($H74,\"ホームページはこちら\")","v":"ホームページはこちら"},"097-537-5977",null,"https://www.city.oita.oita.jp/o168/r6notohantou.html"]
["九州","大分県","別府市","別府市住宅管理センター（大分県住宅供給公社）",{"$f":"HYPERLINK($H75,\"ホームページはこちら\")","v":"ホームページはこちら"},"0977-21-2200",null,"https://www.city.beppu.oita.jp/bousai_syoubou/bousaijyouhou/notohantou/jyuutaku.html"]
["九州","大分県","中津市","建設部　建設政策課",{"$f":"HYPERLINK($H76,\"ホームページはこちら\")","v":"ホームページはこちら"},"0979-62-9024",null,"https://www.city-nakatsu.jp/doc/2024011800143/"]
["九州","大分県","日田市","土木建築部建築住宅課",null,"0973-22-8218"]
["九州","大分県","佐伯市","建築住宅課住宅係",{"$f":"HYPERLINK($H78,\"ホームページはこちら\")","v":"ホームページはこちら"},"0972-22-3550",null,"https://www.city.saiki.oita.jp/kiji0038969/index.html"]
["九州","大分県","臼杵市","都市デザイン課",{"$f":"HYPERLINK($H79,\"ホームページはこちら\")","v":"ホームページはこちら"},"0972-63-1111",null,"https://www.city.usuki.oita.jp/article/2024011700016/"]
["九州","大分県","津久見市","まちづくり課",{"$f":"HYPERLINK($H80,\"ホームページはこちら\")","v":"ホームページはこちら"},"0972-82-9515",null,"https://www.city.tsukumi.oita.jp/soshiki/12/26183.html"]
["九州","大分県","豊後高田市","都市建築課",{"$f":"HYPERLINK($H81,\"ホームページはこちら\")","v":"ホームページはこちら"},"0978-25-6274",null,"https://www.city.bungotakada.oita.jp/soshiki/19/21969.html"]
["九州","大分県","杵築市","建設課管理係",null,"0978-62-1811"]
["九州","大分県","宇佐市","宇佐市役所　建築住宅課",{"$f":"HYPERLINK($H83,\"ホームページはこちら\")","v":"ホームページはこちら"},"0978-27-8184",null,"https://www.city.usa.oita.jp/sougo/soshiki/10/somu/1/20501.html"]
["九州","大分県","豊後大野市","建設課",{"$f":"HYPERLINK($H84,\"ホームページはこちら\")","v":"ホームページはこちら"},"0974-22-1001(内2352)",null,"https://www.bungo-ohno.jp/article/2024012200027/"]
["九州","大分県","由布市","建設課",null,"097-582-1273"]
["九州","大分県","国東市","建設課",null,"0978-72-5179"]
["九州","大分県","姫島村","建設課",null,"0978-87-2283"]
["九州","大分県","日出町","都市建設課",null,"0977-73-3172"]
["九州","大分県","九重町","建設課",null,"0973-76-3811"]
["九州","宮崎県"]
["九州","宮崎県","都城市","住宅施設課",null,"0986-23-3105"]
["九州","宮崎県","小林市","管財課",null,"0984-23-0222"]
["九州","宮崎県","えびの市","財産管理課",null,"0984-35-1120"]
["九州","鹿児島県"]
["九州","鹿児島県","鹿児島県","住宅政策室",{"$f":"HYPERLINK($H95,\"ホームページはこちら\")","v":"ホームページはこちら"},"099-286-3735",null,"https://www.pref.kagoshima.jp/ah14/kenjusiteikanri/notohanntoujisinn.html"]
["九州","鹿児島県","鹿児島市","住宅課",{"$f":"HYPERLINK($H96,\"ホームページはこちら\")","v":"ホームページはこちら"},"099-216-1362",null,"https://www.city.kagoshima.lg.jp/kensetu/kenchiku/jutaku/kurashi/sumai/shie/kibo/noto-jisin.html"]
["九州","鹿児島県","鹿屋市","建設部建築住宅課",{"$f":"HYPERLINK($H97,\"ホームページはこちら\")","v":"ホームページはこちら"},"0994-31-1129",null,"https://www.city.kanoya.lg.jp/jyukanri/kurashi/tochi/koe/koejutaku.html"]
["九州","鹿児島県","枕崎市","建設課　建築係",null,"0993-72-1111"]
["九州","鹿児島県","出水市","建設部建築住宅課住宅政策係",null,"0996-63-4066"]
["九州","鹿児島県","指宿市","建築課住宅管理係",null,"0993-22-2111"]
["九州","鹿児島県","垂水市","土木課管理用地係",null,"0994-32-1386"]
["九州","鹿児島県","薩摩川内市","建築住宅課住宅管理グループ",null,"0996-23-5111"]
["九州","鹿児島県","日置市","産業建設部　建設課　管理係",null,"099-273-8871"]
["九州","鹿児島県","霧島市","建設部建築住宅課",{"$f":"HYPERLINK($H104,\"ホームページはこちら\")","v":"ホームページはこちら"},"0995-64-0909"]
["九州","鹿児島県","いちき串木野市","都市建設課",null,"0996-21-5112",null,"https://www.city-kirishima.jp/kentikujuutaku/kurashi/shiejutaku/1.html"]
["九州","鹿児島県","南さつま市","建築住宅課　住宅係",{"$f":"HYPERLINK($H106,\"ホームページはこちら\")","v":"ホームページはこちら"},"0993-76-1629"]
["九州","鹿児島県","志布志市","建設課　建築住宅グループ",{"$f":"HYPERLINK($H107,\"ホームページはこちら\")","v":"ホームページはこちら"},"099-474-1111",null,"https://www.city.minamisatsuma.lg.jp/living/sumai-tochi/bunjo/shieijutaku/e029293.html"]
["九州","鹿児島県","南九州市","都市政策課",null,"0993-83-2511",null,"https://www.city.shibushi.lg.jp/soshiki/12/24531.html"]
["九州","鹿児島県","伊佐市","建設課",null,"0995-23-1311"]
["九州","鹿児島県","姶良市","建設部建築住宅課",null,"0995-66-3409"]
["九州","鹿児島県","大崎町","建設課",null,"099-476-1111"]
["九州","鹿児島県","東串良町","建設課",null,"0994-63-3126"]
["九州","鹿児島県","錦江町","錦江町役場建設課住宅水道チーム",null,"0994-22-3033"]
["九州","鹿児島県","肝付町","建設課",null,"0994-65-8424"]
["九州","鹿児島県","徳之島町","建設課・学校教育課",null,"0997-82-1155"]
["九州","鹿児島県","和泊町","土木課",null,"0997-84-3520"]
["沖縄","沖縄県"]
["沖縄","沖縄県","沖縄県","沖縄県土木建築部住宅課",{"$f":"HYPERLINK($H118,\"ホームページはこちら\")","v":"ホームページはこちら"},"098-866-2418",null,"https://www.pref.okinawa.lg.jp/site/chijiko/bosai/r6notohantoushien.html"]
["沖縄","沖縄県","那覇市","まちなみ共創部市営住宅課",null,"098-951-3262"]
["沖縄","沖縄県","金武町","住民生活課生活環境係",null,"098-968-2460"]